Workbook

Sheet Front Page
A1: Front Page | B1: GTS.ENV.BTS.DSH.001
A2: Basic information
A4: Project | B4: BTS Samlesbury
A5: Project No.
A6: Contract No.
A7: Contractor | B7: Global Water Engineering
A9: Fill-in date
A10: Revision date
A14: Sheet overview with links
A15: User Instructions | B15: Sludge Treatment
A16: Performance Requirements | B16: Laboratory Equipment
A17: Utility Consumptions | B17: Civil Work & Buildings
A18: ='Inlet Station'!A1:G1 -> Inlet Station | B18: Piping and Insulation
A19: Buffer - Storage | B19: Pipe Bridges and Support
A20: Chemical Storage & Dosing | B20: Structures and Platforms
A21: Anaerobic Unit | B21: Other Mechanical Works
A22: Aerobic Unit | B22: Control System
B23: Electrical Installation
B24: Documentation
B25: Training
A26: Phosphorous Removal | B26: Required Makes - Mechanical
A27: Outlet Station | B27: Required Makes - Electrical
A28: Disinfection | B28: Requiresd Makes - Paint
A29: Biogas Treatment | B29: Revision History
A30: Odour Control

Sheet Performance Requirements
A1: Performance Requirements | L1: Front Page
A2: No. | B2: Description | C2: Units | D2: Ab InBev | F2: Ab InBev | H2: Ab InBev | J2: Testing Regime/Comments | K2: Contractor | L2: User Instruction
A3: I | B3: BTS Influent Characteristics | D3: Year 1 | F3: Year 2 | H3: Year 3
A4: 1 | B4: Production data
A5: 1.1 | B5: Prduction - peak brewhouse volume final gravity | C5: hl/day | F5: 18900
A6: 1.2 | B6: Water usage brewery | C6: hl/hl | F6: 3.08
A7: 1.3 | B7: Prduction - peak soft drinks volume | C7: hl/day
A8: 1.4 | B8: Water usage soft drinks | C8: hl/hl
A9: 1.5 | B9: Prduction - peak malt volume | C9: ton/day
A10: 1.6 | B10: Water usage malting | C10: m3/ton
A11: 1.7 | B11: Index of Organic Load Brewery | C11: kgCOD/hl | F11: 1.3
A12: 1.8 | B12: Index of Organic Load Soft Drinks | C12: kgCOD/hl
A13: 1.9 | B13: Index of Organic Load Malting | C13: kgCOD/ton
A14: 2 | B14: BTS Hydrulic load | C14: m3/d | D14: =D15+D19+D20 -> 0 | F14: =F17 -> 4819.6 | H14: =H15+H19+H20 -> 0 | J14: Acceptance test on full cpacity needed | K14: confirmed, assuming full flow is available during acceptance test for the relevant parts of the BTS
A15: 2.1 | B15: Hydraulic load brewery | C15: m3/day | D15: =(D5*D6/10-D5/10)-(D5/10*4%) -> 0 | F15: =(F5*F6/10-F5/10)-(F5/10*4%) -> 3855.6 | H15: =(H5*H6/10-H5/10)-(H5/10*4%) -> 0 | K15: confirmed
A16: 2.2 | B16: Rainwater correction | C16: m3/day | F16: 964 | K16: confirmed, can this be disconnected from process sewer network ?
A17: 2.3 | B17: Hydraulic load to BTS | C17: m3/day | F17: =F15+F16 -> 4819.6 | J17: Acceptance test on full cpacity needed | K17: confirmed, assuming full flow is available during acceptance test | L17: Full effluent flow to screening + pumping station
A18: 2.4 | B18: Hydraulic load treated | C18: m3/day | F18: =2892 -> 2892 | J18: Acceptance test on full cpacity needed | K18: confirmed, assuming full flow is available during acceptance test | L18: (60% of total flow) EQ+CAL+Biological treatment
A19: 2.5 | B19: Hydraulic load soft drinks | C19: m3/day | D19: =(D7*D8/10-D7/10)-(D7/10*1%) -> 0 | F19: =(F7*F8/10-F7/10)-(F7/10*1%) -> 0 | H19: =(H7*H8/10-H7/10)-(H7/10*1%) -> 0 | K19: not applicable
A20: 2.6 | B20: Hydraulic load malting | C20: m3/day | D20: =D9*D10 -> 0 | F20: =F9*F10 -> 0 | H20: =H9*H10 -> 0 | K20: not applicable
A21: 3 | B21: BTS Organic load | C21: kg/day | D21: =D22+D24+D25 -> 0 | F21: =F23 -> 15000 | H21: =H22+H24+H25 -> 0 | J21: Acceptance test at min 80% of the desin needed | K21: confirmed, assuming min. 80% of the design organic load and flow are available during acceptance test | L21: biological treatment
A22: 3.1 | B22: Index of Organic Load Brewery | C22: kg/day | D22: =D5*D11 -> 0 | F22: =F5*F11 -> 24570 | H22: =H5*H11 -> 0 | K22: confirmed | L22: total load from Brewery
A23: 3.2 | B23: Organic load treated in BTS | C23: kg/day | F23: 15000 | J23: Acceptance test at min 80% of the design needed | K23: confirmed, assuming min. 80% of the design organic load and flow are available during acceptance test | L23: biological treatment
A24: 3.2 | B24: Index of Organic Load Soft Drinks | C24: kg/day | D24: =D7*D12 -> 0 | F24: =F7*F12 -> 0 | H24: =H7*H12 -> 0 | K24: not applicable
A25: 3.3 | B25: Index of Organic Load Malting | C25: kg/day | D25: =D9*D13 -> 0 | F25: =F9*F13 -> 0 | H25: =H9*H13 -> 0 | K25: not applicable
A26: 3.4 | B26: Calculated COD concentration total | C26: mg/l | D26: =D21/D14*1000 ->  | F26: =F22/F14*1000 -> 5097.933438 | H26: =H21/H14*1000 ->  | K26: confirmed
A27: 3.5 | B27: Calculated COD concentration brewery | C27: mg/l | D27: =D22/D15*1000 ->  | H27: =H22/H15*1000 ->  | K27: not applicable
A28: 3.6 | B28: Calculated COD concentration soft drinks | C28: mg/l | D28: =D24/D19*1000 ->  | F28: =F24/F19*1000 ->  | H28: =H24/H19*1000 ->  | K28: not applicable
A29: 3.7 | B29: Calculated COD concentration malting | C29: mg/l | D29: =D25/D20*1000 ->  | F29: =F25/F20*1000 ->  | H29: =H25/H20*1000 ->  | K29: not applicable
A30: 3.8 | B30: BOD/COD ratio | C30: NA | D30: 0.7 | F30: 0.7 | H30: 0.7 | J30: Please specify based on Site or Zone (incase of green field site) statistics | K30: confirmed
A31: 4 | B31: Macro Nutrients
A32: 4.1 | B32: Totla Nitrogen Concentration peak | C32: mig/l | D32: 90 | F32: 90 | H32: 90 | K32: confirmed
A33: 4.2 | B33: Totla Nitrogen Concentration average | C33: mg/l | D33: 50 | F33: 50 | H33: 50 | K33: confirmed
A34: 4.3 | B34: Totla Phosphorus Concentration peak | C34: mig/l | D34: 25 | F34: 25 | H34: 25 | K34: confirmed
A35: 4.4 | B35: Totla Phosphorus Concentration Average | C35: mg/l | D35: 10 | F35: 10 | H35: 10 | K35: confirmed
A36: 5 | B36: Macro Nutrients
A37: 5.1 | B37: pH min | C37: NA | D37: 4 | F37: 4 | H37: 4 | J37: Please specify based on Site or Zone (incase of green field site) statistics | K37: confirmed
A38: 5.2 | B38: pH max | C38: mg/l | D38: 12 | F38: 12 | H38: 12 | J38: Please specify based on Site or Zone (incase of green field site) statistics | K38: confirmed
A39: 5.3 | B39: T min | C39: oC | D39: 5 | F39: 5 | H39: 5 | J39: Please specify based on Site or Zone (incase of green field site) statistics | K39: to be clarified
A40: 5.4 | B40: T max | C40: oC | D40: 80 | F40: 80 | H40: 80 | J40: Please specify based on Site or Zone (incase of green field site) statistics | K40: to be clarified
A41: 5 | B41: Total Suspended Solids | C41: mg/l | D41: 700 | F41: 700 | H41: 700 | K41: high value, to be considered as a maximum or as average ?
A42: II | B42: BTS Main Treatment Stages
A43: 6 | B43: Primary Treatment Setlable Solids Removal Effciency | C43: % | D43: >80 | F43: >80 | H43: >80 | K43: not applicable
A44: 7 | B44: Anaerobic Treatment COD Removal Effciency | C44: % | D44: >85 | F44: >85 | H44: >85 | K44: Yes, expected at design characteristics as per proposal
A45: 8 | B45: Biogas generation per kg COD removed | C45: m3/kg COD | D45: >0,36 | F45: >0,36 | H45: >0,36 | K45: confirmed
A46: 9 | B46: H2S Concentration Outlet Bio gas treatment | C46: ppm | D46: <100 | F46: <100 | H46: <100 | K46: confirmed
A47: 10 | B47: H2S Concentration Outlet Odor Treatment | C47: ppm | D47: <5 | F47: <5 | H47: <5 | K47: confirmed
A48: 11 | B48: Aerobic Treatment COD Removal Effciency | C48: % | D48: >70% | F48: >70% | H48: >70% | K48: not applicable
A49: 12 | B49: Sludge concentration outlet thickener | C49: % w/w | D49: >2% | F49: >2% | H49: >2% | K49: not applicable
A50: 13 | B50: Sludge concentration outlet dewatering | C50: % w/w | D50: >15% | F50: >15% | H50: >15% | K50: not applicable
A51: III | B51: Final Effluent Compliance
A52: 14 | B52: BOD | C52: mg/l | D52: to be specified | F52: to be specified | H52: to be specified | K52: Expected < 750 | L52: Mix BTS + Bypass
A53: 15 | B53: COD | C53: mg/l | D53: to be specified | F53: to be specified | H53: to be specified | K53: Expected < 1,000 | L53: Mix BTS + Bypass
A54: 16 | B54: TSS | C54: mg/l | D54: to be specified | F54: to be specified | H54: to be specified | K54: Expected < 1,000 | L54: Mix BTS + Bypass
A55: 17 | B55: pH min | C55: NA | D55: to be specified | F55: to be specified | H55: to be specified | K55: to be discussed | L55: Mix BTS + Bypass
A56: 18 | B56: pH max | C56: NA | D56: to be specified | F56: to be specified | H56: to be specified | K56: to be discussed | L56: Mix BTS + Bypass
A57: 19 | B57: T | C57: oC | D57: to be specified | F57: to be specified | H57: to be specified | K57: to be discussed
A58: 20 | B58: Conductivity | C58: uS/cm | D58: to be specified | F58: to be specified | H58: to be specified | K58: not applicable
A59: 21 | B59: TN | C59: mg/l | D59: to be specified | F59: to be specified | H59: to be specified | K59: not applicable
A60: 22 | B60: NH4-N | C60: mg/l | D60: to be specified | F60: to be specified | H60: to be specified | K60: not applicable
A61: 23 | B61: NO2-N | C61: mg/l | D61: to be specified | F61: to be specified | H61: 5 | K61: not applicable
A62: 24 | B62: NO3-N | C62: mg/l | D62: to be specified | F62: to be specified | H62: to be specified | K62: not applicable
A63: 25 | B63: PO4-P | C63: mg/l | D63: to be specified | F63: to be specified | H63: to be specified | K63: not applicable
A64: 26 | B64: Me cintent | C64: mg/l | D64: to be specified | F64: to be specified | H64: to be specified | K64: not applicable
A65: 27 | B65: Cl- | C65: mg/l | D65: to be specified | F65: to be specified | H65: to be specified | K65: not applicable
A66: 28 | B66: SO4 | C66: mg/l | D66: to be specified | F66: to be specified | H66: to be specified | K66: not applicable
A67: 29 | B67: List all other parametes as stipulated by permit | C67: mg/l | D67: to be specified | F67: to be specified | H67: to be specified | K67: not applicable
A68: IV | B68: Utility and auxiliary consumption
A69: 30 | B69: Heat consumption | C69: Mj/m3 | D69: 25.6 | F69: to be specified | H69: to be specified | K69: Based on 74,160 MJ/d and daily flow of 2,892 m3
A70: 31 | B70: Electricity consumpton | C70: kWh/kg COD | D70: 0.13 | F70: to be specified | H70: to be specified | K70: total Energy consumption approx 20600 kWh/d and COD load of 15,000 kg/d
A71: 32 | B71: Water consumption | C71: m3/m3 | D71: to be specified | F71: to be specified | H71: to be specified
A72: 33 | B72: Caustic consumption | C72: kg100%/m3 | D72: to be specified | F72: to be specified | H72: to be specified | K72: depending on operation of brewery
A73: 34 | B73: Acid consumption | C73: kg100%/m3 | D73: to be specified | F73: to be specified | H73: to be specified | K73: depending on operation of brewery
A74: 35 | B74: Coagulant for PO4-P removal consumption | C74: kg/kg P | D74: to be specified | F74: to be specified | H74: to be specified | K74: not applicable
A75: 36 | B75: Polymer for sludge dewatering consumption | C75: kg/ton 100% | D75: to be specified | F75: to be specified | H75: to be specified | K75: not applicable
A76: 37 | B76: Disinfectants, Chlorine Dioxide [or] Ozone | C76: mg/m3 water | D76: to be specified | F76: to be specified | H76: to be specified | K76: not applicable
A77: 38 | B77: Compressed air for pneumatic valves | C77: Nm3/min | D77: to be specified | F77: to be specified | H77: to be specified | K77: specified during engineering

Sheet Inlet Station
A1: Inlet Station | G1: Front Page
A2: No. | B2: Description | D2: Units | E2: AB InBev | F2: Contractor | G2: Notes | H2: ABInBev Notes
A3: 1 | B3: Inlet station
A4: =A3+1 -> 2 | B4: Daily flow | D4: m3/d | E4: To be specified | F4: ='Performance Requirements'!F17:G17 -> 4819.6 | G4: Full effluent flow
A5: =A4+1 -> 3 | B5: Minimum hydraulic retention Time | D5: h | E5: To be specified | F5: 0,13 at peak flow
A6: 4 | B6: Hourly flow, average | D6: m3/h | E6: To be specified | F6: 200
A7: 5 | B7: Hourly flow, max. | D7: m3/h | E7: To be specified | F7: 300 (to be confirmed)
A9: =A7+1 -> 6 | B9: Inlet station tank
A10: =A9+1 -> 7 | B10: Shape of tank - circular | E10: To be specified | F10: by civil contractor
A11: =A10+1 -> 8 | B11: Shape of tank - rectangular | E11: To be specified | F11: by civil contractor
A12: 9 | B12: Dimension of tank | D12: L/B/H or D/H | E12: To be specified | F12: by civil contractor
A13: 10 | B13: Net volume | D13: m3 | E13: To be specified | F13: 40
A14: 11 | B14: Gross volume | D14: m3 | E14: To be specified | F14: by civil contractor
A15: 12 | B15: Top cover | E15: To be specified | F15: by civil contractor
A16: 13 | B16: Manhole incl. safety switch | E16: To be specified | F16: by civil contractor
A17: 14 | B17: Manhole diameter | D17: mm | E17: To be specified | F17: by civil contractor
A18: 15 | B18: Construction: Material | E18: Specify material and material quality | F18: concrete
A19: 16 | B19: Coating | E19: To be specified | F19: by civil contractor
A20: 17 | B20: Odor removal | E20: To be supplied | F20: not included
A22: =A19+1 -> 17 | B22: Coarse screen | D22: pcs | F22: 1
A23: =A22+1 -> 18 | B23: Bar Spacing | D23: mm | E23: To be specified | F23: 10
A24: =A23+1 -> 19 | B24: Location | E24: To be specified | F24: Mounted in a channel on the inlet of the lift station
A25: =A24+1 -> 20 | B25: Maximum capacity | D25: m3/h | E25: To be specified | F25: =F7 -> 300 (to be confirmed)
A26: =A25+1 -> 21 | B26: Cleaning equipment | E26: to be supplied - automatic | F26: confirmed
A27: =A26+1 -> 22 | B27: Material | E27: To be specified | F27: Stainless steel AISI 304
A29: =A27+1 -> 23 | B29: Water pump station | E29: To be supplied | F29: confirmed
A30: =A29+1 -> 24 | B30: Pumps | D30: pcs | E30: min 1 working and 1 stand by | F30: 1 + 1 standby
A31: =A30+1 -> 25 | B31: Make | E31: To be specified | F31: KSB or equivalent
A32: 26 | B32: Type | E32: To be specified | F32: submersible
A33: 27 | B33: Capacity per pump | D33: m3/h | E33: To be specified | F33: =F7 -> 300 (to be confirmed)
A34: 28 | B34: Pumping head | D34: Bar | E34: To be specified | F34: 1,5 (depending on depth incoming sewer)
A35: 29 | B35: Pump speed | D35: rpm | E35: To be specified | F35: 2900
A36: 30 | B36: Size of motor | D36: Kw | E36: To be specified | F36: 21
A37: 31 | B37: Motor efficiency | E37: To be specified | F37: 87,5 % at 4/4 load
A38: 32 | B38: Frequency converter | E38: To be supplied | F38: confirmed
A39: 33 | B39: Impeller construction material | E39: To be supplied | F39: stainless steel
A40: 34 | B40: Pump house material | E40: To be specified | F40: cast iron
A41: 35 | B41: Lifting device for maintenance | E41: To be supplied | F41: confirmed
A43: =A41+1 -> 36 | B43: Other equipment
A44: =A43+1 -> 37 | B44: Equipment for safte access and maintenance | E44: To be supplied | F44: lifting device only, access to pumping station by civil contractor
A46: =A44+1 -> 38 | B46: Piping
A47: =A46+1 -> 39 | B47: Piping material - resitent to influent media | E47: To be specified | F47: HDPE
A49: =A47+1 -> 40 | B49: Instrumentation inlet station
A50: =A49+1 -> 41 | B50: Level control HH,H,L,LL | E50: To be supplied | F50: confirmed
A51: =A50+1 -> 42 | B51: pH control | E51: To be supplied | F51: confirmed
A52: 43 | B52: Temperature control | E52: To be supplied | F52: confirmed
A53: 44 | B53: Flow measurement | E53: To be supplied | F53: confirmed
A54: 45 | B54: Redox measurement | E54: To be supplied | F54: confirmed
A55: 46 | B55: Automatic sampler | E55: To be supplied | F55: Not included
A56: 47 | B56: Option - Inline COD (TOC), TSS measurement | E56: To be specified | F56: confirmed

Sheet Primary Treatement
A1: Inlet Station | G1: Front Page
A2: No. | B2: Description | D2: Units | E2: AB InBev | F2: Contractor | G2: Notes | H2: ABInBev Notes
A3: 1 | B3: Fine Screen | D3: pcs
A4: =A3+1 -> 2 | B4: Screen sizing | D4: mm | E4: <1 | F4: 1 mm | G4: full effluent flow
A5: =A4+1 -> 3 | B5: Location | E5: to be specified | F5: inlet EQ-buffer
A6: 4 | B6: Cleaning equipment | E6: Automatic | F6: confirmed
A7: 5 | B7: Flush water | E7: Recovered treated BTS effluent | F7: not confirmed, nozzles would get clogged, cleaning with factory water
A8: 6 | B8: Type | E8: to be specified | F8: externally fed rotary screen
A9: 7 | B9: Capacity | E9: To be specified
A10: 8 | B10: Material | E10: Stainless steel / min. SS304, non-stainless steel parts to be protected/coated | F10: confirmed
A11: 9 | B11: Transportation system for screen material | E11: To be supplied | F11: confirmed
A12: 10 | B12: Reception container | E12: To be supplied | F12: confirmed
A14: =A12+1 -> 11 | B14: Optional 'Primary sedimentation tank | D14: pcs | E14: to be specified | F14: not applicable
A15: =A14+1 -> 12 | B15: Type | E15: to be specified | F15: not applicable
A16: =A15+1 -> 13 | B16: Make | E16: to be specified | F16: not applicable
A17: 14 | B17: Volume | D17: m3 | E17: to be specified | F17: not applicable
A18: 15 | B18: Settlieng surface | D18: m2 | E18: to be specified | F18: not applicable
A19: 16 | B19: Surface loading rate | D19: kgTSS/m2/h | E19: to be specified | F19: not applicable
A20: 17 | B20: Sludge pumps | D20: pcs | E20: to be specified | F20: not applicable
A21: 18 | B21: Sludge pumps Make | E21: to be specified | F21: not applicable
A22: 19 | B22: Sludge pumps Type | E22: to be specified | F22: not applicable
A23: 20 | B23: Sludge pumps capacity per pump | D23: m3/h | E23: to be specified | F23: not applicable
A24: 21 | B24: sludge line sampling valve | E24: to be supplied | F24: not applicable

Sheet EQ-Buffer - Storage
A1: Equalization - 'Buffer - Storage | G1: Front Page
A2: No. | B2: Description | D2: Units | E2: AB InBev | F2: Contractor | G2: Notes | H2: ABInBev Notes
A3: 1 | B3: EQ Buffer tank | D3: pcs | F3: 1
A4: =A3+1 -> 2 | B4: Minimum hydraulic retention Time | D4: h | E4: 9 hours.'To be specified | F4: 9 | G4: 60% of total effluent flow
A5: 3 | B5: Construction: Material | E5: Specify material and material quality | F5: Coated steel
A6: 4 | B6: Shape of tank | E6: To be specified | F6: circular
A7: 5 | B7: Dimension of tank | D7: L/B/H or D/H | E7: To be specified | F7: 11/12
A8: 6 | B8: Net volume | D8: m3 | E8: To be specified | F8: 1080
A9: 7 | B9: Gross volume | D9: m3 | E9: To be specified | F9: 1130
A10: 8 | B10: Thickness of tank wall | D10: mm | E10: To be specified | F10: To be confirmed during engineering
A11: 9 | B11: Coating of wall | E11: To be specified | F11: Epoxy or glass
A12: 10 | B12: Coating of bottom | E12: To be specified | F12: tank without bottom, coating of concrete slab by civil contractor
A13: 11 | B13: Coating of top | E13: To be specified | F13: not applicable
A14: 12 | B14: Top cover | E14: To be specified | F14: GRP
A15: 13 | B15: Manhole incl. safety switch | E15: To be specified | F15: Manhole without safety switch
A16: 14 | B16: Manhole diameter | D16: mm | E16: To be specified | F16: 800
A17: 15 | B17: Insulation material (if applicable based on ambient temperature) | E17: To be specified | F17: Rockwool (option)
A18: 16 | B18: Insulation thickness | D18: mm | E18: To be specified | F18: 50
A19: 17 | B19: Cladding of insulated tank. | E19: To be specified | F19: Included
A20: 18 | B20: External ladder to tank top or Common walkway for group of vessels | E20: To be specified | F20: Included
A21: 19 | B21: Material of Ladder or Walkway | E21: To be specified | F21: Galvanized steel
A22: 20 | B22: Protection handrail of tank top | E22: To be specified | F22: no peripheral handrailing, only on working platform
A23: 21 | B23: Material of tank top handrail | E23: To be specified | F23: not applicable
A24: 22 | B24: Overflow pipe | E24: To be specified | F24: to calamity tank
A25: 23 | B25: Odor removal | E25: To be specified | F25: confirmed
A26: 24 | B26: Vacuum-pressure protection | E26: To be specified | F26: open vent, slight underpressure created by air ventilation
A27: 25 | B27: By-pass facility to next process unit | E27: To be specified | F27: (partial) bypass to discharge
A29: =A27+1 -> 26 | B29: Agitators
A30: =A29+1 -> 27 | B30: Type | E30: To be specified | F30: side entry
A31: =A30+1 -> 28 | B31: Material | E31: To be specified | F31: stainless steel AISI 316
A32: 29 | B32: Design of blades | E32: To be specified | F32: “BD” high efficiency impeller
A33: 30 | B33: Mount of agitator | E33: Top/side/bottom. To be specified | F33: side entry
A34: 31 | B34: Diameter of agitator | D34: mm | E34: To be specified | F34: 700
A35: 32 | B35: Motor size for agitator | D35: kW | E35: To be specified | F35: 5.5
A36: 33 | B36: Frequency converter | E36: To be specified | F36: no
A37: 34 | B37: Speed controlle range | D37: rpm | E37: To be specified | F37: not applicable
A38: 35 | B38: Mixing efficiency | D38: W/m3 water | E38: max. 3 W/m3. 'To be specified | F38: 5
A40: =A27+1 -> 26 | B40: EQ-Buffer pumps | E40: To be supplied | F40: confirmed
A41: =A40+1 -> 27 | B41: Pumps | D41: pcs | E41: To be specified | F41: 1 + 1 standby | G41: 1 for backup
A42: =A41+1 -> 28 | B42: Make | E42: To be specified | F42: KSB
A43: 29 | B43: Type | E43: Centrifugal | F43: confirmed
A44: 30 | B44: Capacity per pump | D44: m3/h | E44: To be specified | F44: 125
A45: 31 | B45: Pumping head | D45: Bar | E45: To be specified | F45: 2
A46: 32 | B46: Pump speed | D46: rpm | E46: To be specified | F46: 2900
A47: 33 | B47: Size of motor | D47: Kw | E47: To be specified | F47: 15
A48: 34 | B48: Motor efficiency | E48: IE3 (+) | F48: IE3
A49: 35 | B49: Frequency converter | E49: To be supplied | F49: confirmed
A50: 36 | B50: Impeller construction material | E50: AISI 304 (+) | F50: confirmed
A51: 37 | B51: Pump house material | E51: To be specified | F51: cast iron
A52: 38 | B52: Flowmeter | E52: To be supplied | F52: confirmed
A53: 39 | B53: Pressure transmitter | E53: To be supplied | F53: not confirmed
A54: 40 | B54: Pressure meter | E54: To be supplied | F54: confirmed, 1 manometer per pump
A55: 41 | B55: Sample valves | C55: Make | E55: To be specified | F55: Sodeco Valves
A56: 42 | C56: Material | E56: AISI 304(+) | F56: confirmed
A57: 43 | C57: Outlet - Microbiological | E57: To be supplied | F57: not confirmed
A58: 44 | B58: Stop valve | E58: To be supplied | F58: confirmed
A61: =A58+1 -> 45 | B61: Instrumentation
A62: =A61+1 -> 46 | B62: Tank level control HH,H,L,LL | E62: To be supplied | F62: confirmed
A63: =A62+1 -> 47 | B63: pH control | E63: To be supplied | F63: confirmed
A64: 48 | B64: Temperature control | E64: To be supplied | F64: confirmed, via pH measurement
A65: 49 | B65: Flow measurement | E65: To be supplied | F65: confirmed
A66: 50 | B66: Option - Inline COD (TOC), TSS, VFA measurement | E66: To be supplied | F66: TSS confirmed

Sheet Calamity Tank
B1: Calamity | G1: Front Page
A2: No. | B2: Description | D2: Units | E2: AB InBev | F2: Contractor | G2: Notes | H2: ABInBev Notes
A3: 1 | B3: calamity tank | D3: pcs | F3: 1
A4: =A3+1 -> 2 | B4: Minimum hydraulic retention Time | D4: h | E4: 3 hours.'To be specified | F4: 3.2 | G4: 60% of total effluent flow
A5: 3 | B5: Construction: Material | E5: Specify material and material quality | F5: Coated steel
A6: 4 | B6: Shape of tank | E6: To be specified | F6: circular
A7: 5 | B7: Dimension of tank | D7: L/B/H or D/H | E7: To be specified | F7: 7,8/8,5
A8: 6 | B8: Net volume | D8: m3 | E8: To be specified | F8: 380
A9: 7 | B9: Gross volume | D9: m3 | E9: To be specified | F9: 400
A10: 8 | B10: Thickness of tank wall | D10: mm | E10: To be specified | F10: To be confirmed during engineering
A11: 9 | B11: Coating of wall | E11: To be specified | F11: Epoxy or glass
A12: 10 | B12: Coating of bottom | E12: To be specified | F12: tank without bottom, coating of concrete slab by civil contractor
A13: 11 | B13: Coating of top | E13: To be specified | F13: not applicable
A14: 12 | B14: Top cover | E14: To be specified | F14: GRP
A15: 13 | B15: Manhole incl. safety switch | E15: To be specified | F15: Manhole without safety switch
A16: 14 | B16: Manhole diameter | D16: mm | E16: To be specified | F16: 800
A17: 15 | B17: Insulation material (if applicable based on ambient temperature) | E17: To be specified | F17: Rockwool (option)
A18: 16 | B18: Insulation thickness | D18: mm | E18: To be specified | F18: 50
A19: 17 | B19: Cladding of insulated tank. | E19: To be specified | F19: Included
A20: 18 | B20: External ladder to tank top or Common walkway for group of vessels | E20: To be specified | F20: Included
A21: 19 | B21: Material of Ladder or Walkway | E21: To be specified | F21: Galvanized steel
A22: 20 | B22: Protection handrail of tank top | E22: To be specified | F22: no peripheral handrailing, only on working platform
A23: 21 | B23: Material of tank top handrail | E23: To be specified | F23: not applicable
A24: 22 | B24: Overflow pipe | E24: To be specified | F24: to discharge with level switch
A25: 23 | B25: Odor removal | E25: To be specified | F25: confirmed
A26: 24 | B26: Vacuum-pressure protection | E26: To be specified | F26: open vent, slight underpressure created by air ventilation
A27: 25 | B27: By-pass facility to next process unit | E27: To be specified | F27: (partial) bypass to discharge
A29: =A27+1 -> 26 | B29: Agitators
A30: =A29+1 -> 27 | B30: Type | E30: To be specified | F30: side entry
A31: =A30+1 -> 28 | B31: Material | E31: To be specified | F31: stainless steel AISI 316
A32: 29 | B32: Design of blades | E32: To be specified | F32: “BD” high efficiency impeller
A33: 30 | B33: Mount of agitator | E33: Top/side/bottom. To be specified | F33: side entry
A34: 31 | B34: Diameter of agitator | D34: mm | E34: To be specified | F34: 625
A35: 32 | B35: Motor size for agitator | D35: kW | E35: To be specified | F35: 2.2
A36: 33 | B36: Frequency converter | E36: To be specified | F36: no
A37: 34 | B37: Speed controlle range | D37: rpm | E37: To be specified | F37: not applicable
A38: 35 | B38: Mixing efficiency | D38: W/m3 water | E38: max. 3 W/m3. 'To be specified | F38: 6
A40: =A27+1 -> 26 | B40: Calamity pumps | E40: To be supplied | F40: confirmed
A41: =A40+1 -> 27 | B41: Pumps | D41: pcs | E41: To be specified | F41: 1 + 1 standby | G41: 1 for backup
A42: =A41+1 -> 28 | B42: Make | E42: To be specified | F42: KSB
A43: 29 | B43: Type | E43: Centrifugal | F43: confirmed
A44: 30 | B44: Capacity per pump | D44: m3/h | E44: To be specified | F44: 30
A45: 31 | B45: Pumping head | D45: Bar | E45: To be specified | F45: 1
A46: 32 | B46: Pump speed | D46: rpm | E46: To be specified | F46: 2900
A47: 33 | B47: Size of motor | D47: Kw | E47: To be specified | F47: 3
A48: 34 | B48: Motor efficiency | E48: IE3 (+) | F48: IE3
A49: 35 | B49: Frequency converter | E49: To be supplied | F49: not confirmed
A50: 36 | B50: Impeller construction material | E50: AISI 304 (+) | F50: confirmed
A51: 37 | B51: Pump house material | E51: To be specified | F51: cast iron
A52: 38 | B52: Flowmeter | E52: To be supplied | F52: confirmed
A53: 39 | B53: Pressure transmitter | E53: To be supplied | F53: not confirmed
A54: 40 | B54: Pressure meter | E54: To be supplied | F54: confirmed, 1 manometer per pump
A55: 41 | B55: Sample valves | C55: Make | E55: To be specified | F55: Sodeco Valves
A56: 42 | C56: Material | E56: AISI 304(+) | F56: confirmed
A57: 43 | C57: Outlet - Microbiological | E57: To be supplied | F57: not confirmed
A58: 44 | B58: Stop valve | E58: To be supplied | F58: confirmed
A61: =A58+1 -> 45 | B61: Instrumentation
A62: =A61+1 -> 46 | B62: Tank level control HH,H,L,LL | E62: To be supplied | F62: confirmed
A63: =A62+1 -> 47 | B63: pH control | E63: To be supplied | F63: confirmed
A64: 48 | B64: Temperature control | E64: To be supplied | F64: confirmed, via pH measurement
A65: 49 | B65: Flow measurement | E65: To be supplied | F65: confirmed
A66: 50 | B66: Option - Inline COD (TOC), TSS, VFA measurement | E66: To be supplied | F66: TSS confirmed

Sheet Chemical Storage & Dosing
A1: Chemical Storage & Dosing | F1: Front Page
A2: No. | B2: Description | C2: Units | D2: AB InBev | E2: Contractor | F2: Notes | G2: ABInBev Notes
A3: 1 | B3: Caustic storage & dosing
A4: =A3+1 -> 2 | B4: Caustic solution | C4: % | D4: 30% NaOH. To be specified | E4: confirmed
B5: Minimum hydraulic retention Time
A6: =A4+1 -> 3 | B6: Constructions
A7: =A6+1 -> 4 | B7: Bunded area, dimensions | D7: Hight min. 50 cm. To be specified | E7: not applicable
A8: =A7+1 -> 5 | B8: Position (where to be installed), | D8: In Technical Building. To be specified | E8: confirmed
A9: 6 | B9: Foundation, material | D9: To be specified | E9: concrete, by civil contractor
A10: 7 | B10: Protection/coating | D10: To be specified | E10: by civil contractor
A11: 8 | B11: Drain connections | D11: To be specified | E11: by civil contractor
A13: =A11+1 -> 9 | B13: Storage tanks
A14: =A13+1 -> 10 | B14: Capacity | C14: m3 | D14: To be specified | E14: 10
A15: =A14+1 -> 11 | B15: Dimensions | C15: L/B/H or D/H | D15: To be specified | E15: 2 x 4,1 m
A16: 12 | B16: Tank material and quality | D16: To be specified | E16: HDPE
A18: =A16+1 -> 13 | B18: Inlet chemical dosing pump | C18: pcs | E18: 1 + 1 standby
A19: =A18+1 -> 14 | B19: Type | D19: To be specified | E19: motor driven membrane dosing pump
A20: =A19+1 -> 15 | B20: Capacity of pump | C20: m3/h | D20: To be specified | E20: 0.11
A21: 16 | B21: Pumping head | C21: bar | D21: To be specified | E21: 10
A22: 17 | B22: Pump Speed | C22: rpm | D22: To be specified | E22: 96 (stroke frequency)
A23: 18 | B23: Size of motor | C23: kW | D23: To be specified | E23: 0.18
A24: 19 | B24: Frequency converter | D24: To be supplied | E24: confirmed
A25: 20 | B25: Impeller construction material | D25: To be specified | E25: not applicable
A26: 21 | B26: Pump house material | D26: To be specified | E26: PP (dosing head)
A27: 22 | B27: Monitoring system for chemical sonsumption | D27: e.g. weight system, flow measuring, level. To be specified | E27: level measurement storage tank
A28: 23 | B28: Filling connections incl. Couplings | D28: To be specified | E28: confirmed
A30: =A28+1 -> 24 | B30: Other Equipment
A31: =A30+1 -> 25 | B31: Safety equipment | D31: safety shower, eye bath, clean water hose with spray gun and hose spool. To be specified | E31: confirmed, 1 safety shower with eye wash and 1 clean water hose with spray gun and hose spool in chemical area
A33: =A31+1 -> 26 | B33: Piping
A34: =A33+1 -> 27 | B34: Piping material - chemicals | D34: To be specified | E34: HDPE
A36: =A34+1 -> 28 | B36: Instrumentation
A37: =A36+1 -> 29 | B37: Level switch | D37: To be supplied | E37: confirmed
A38: =A37+1 -> 30 | B38: Flow meter | D38: To be supplied | E38: not confirmed
A39: 31 | B39: Weight system | D39: If used for dosing/consumption | E39: not confirmed
A41: =A39+1 -> 32 | B41: Acid storage & dosing
A42: =A41+1 -> 33 | B42: Acid to be used | D42: 30% HCl. To be specified | E42: confirmed
A43: =A42+1 -> 34 | B43: Acid solution | C43: % | D43: To be specified | E43: 30
A45: =A43+1 -> 35 | B45: Constructions
A46: =A45+1 -> 36 | B46: Bunded area, dimensions | D46: Hight min. 50 cm. To be specified | E46: not applicable
A47: =A46+1 -> 37 | B47: Position (where to be installed), | D47: In Technical Building. To be specified | E47: confirmed
A48: 38 | B48: Foundation, material | D48: To be specified | E48: concrete, by civil contractor
A49: 39 | B49: Protection/coating | D49: To be specified | E49: by civil contractor
A50: 40 | B50: Drain connections | D50: To be specified | E50: by civil contractor
A52: =A50+1 -> 41 | B52: Storage tanks
A53: =A52+1 -> 42 | B53: Capacity | C53: m3 | D53: To be specified | E53: 10
A54: =A53+1 -> 43 | B54: Dimensions | C54: L/B/H or D/H | D54: To be specified | E54: 2 x 4,1 m
A55: 44 | B55: Tank material and quality | D55: To be specified | E55: HDPE
A57: =A55+1 -> 45 | B57: Dosing pump | C57: pcs | E57: 1 + 1 standby
A58: =A57+1 -> 46 | B58: Type | D58: To be specified | E58: motor driven membrane dosing pump
A59: =A58+1 -> 47 | B59: Capacity of pump | C59: m3/h | D59: To be specified | E59: 0.11
A60: 48 | B60: Pumping head | C60: bar | D60: To be specified | E60: 10
A61: 49 | B61: Pump Speed | C61: rpm | D61: To be specified | E61: 96 (stroke frequency)
A62: 50 | B62: Size of motor | C62: kW | D62: To be specified | E62: 0.18
A63: 51 | B63: Frequency converter | D63: To be supplied | E63: confirmed
A64: 52 | B64: Impeller construction material | D64: To be specified | E64: not applicable
A65: 53 | B65: Pump house material | D65: To be specified | E65: PP (dosing head)
A66: 54 | B66: Monitoring system for chemical sonsumption | D66: e.g. weight system, flow measuring, level. To be specified | E66: level measurement storage tank
A67: 55 | B67: Filling connections incl. Couplings | D67: To be specified | E67: confirmed
A69: =A67+1 -> 56 | B69: Other Equipment
A70: =A69+1 -> 57 | B70: Safety equipment | D70: safety shower, eye bath, clean water hose with spray gun and hose spool. To be specified | E70: confirmed, 1 safety shower with eye wash and 1 clean water hose with spray gun and hose spool in chemical area
A72: =A70+1 -> 58 | B72: Piping
A73: =A72+1 -> 59 | B73: Piping material - chemicals | D73: To be specified | E73: HDPE
A75: =A73+1 -> 60 | B75: Instrumentation
A76: =A75+1 -> 61 | B76: Level switch | D76: To be supplied | E76: confirmed
A77: =A76+1 -> 62 | B77: Flow meter | D77: To be supplied | E77: not confirmed
A78: 63 | B78: Weight system | D78: If used for dosing/consumption | E78: not confirmed
A80: =A78+1 -> 64 | B80: Phosphorous removal
A81: =A80+1 -> 65 | B81: Chemical to be used | D81: e.g. ironchloride. To be specified | E81: not applicable
A82: =A81+1 -> 66 | B82: Chemical solution | C82: % | D82: solid or % solution. To be specified | E82: not applicable
A84: =A82+1 -> 67 | B84: Constructions | E84: not applicable
A85: =A84+1 -> 68 | B85: Bunded area, dimensions | D85: Hight min. 50 cm. To be specified | E85: not applicable
A86: =A85+1 -> 69 | B86: Position (where to be installed), | D86: In Technical Building. To be specified | E86: not applicable
A87: 70 | B87: Foundation, material | D87: To be specified | E87: not applicable
A88: 71 | B88: Protection/coating | D88: To be specified | E88: not applicable
A89: 72 | B89: Drain connections | D89: To be specified | E89: not applicable
A91: =A89+1 -> 73 | B91: Storage tanks | E91: not applicable
A92: =A91+1 -> 74 | B92: Capacity | C92: m3 | D92: To be specified | E92: not applicable
A93: =A92+1 -> 75 | B93: Dimensions | C93: L/B/H or D/H | D93: To be specified | E93: not applicable
A94: 76 | B94: Tank material and quality | D94: To be specified | E94: not applicable
A96: =A94+1 -> 77 | B96: Dosing pump | C96: pcs | E96: not applicable
A97: =A96+1 -> 78 | B97: Type | D97: To be specified | E97: not applicable
A98: =A97+1 -> 79 | B98: Capacity of pump | C98: m3/h | D98: To be specified | E98: not applicable
A99: 80 | B99: Pumping head | C99: bar | D99: To be specified | E99: not applicable
A100: 81 | B100: Pump Speed | C100: rpm | D100: To be specified | E100: not applicable
A101: 82 | B101: Size of motor | C101: kW | D101: To be specified | E101: not applicable
A102: 83 | B102: Frequency converter | D102: To be supplied | E102: not applicable
A103: 84 | B103: Impeller construction material | D103: To be specified | E103: not applicable
A104: 85 | B104: Pump house material | D104: To be specified | E104: not applicable
A105: 86 | B105: Monitoring system for chemical sonsumption | D105: e.g. weight system, flow measuring, level. To be specified | E105: not applicable
A106: 87 | B106: Filling connections incl. Couplings | D106: To be specified | E106: not applicable
A108: =A106+1 -> 88 | B108: Other Equipment | E108: not applicable
A109: =A108+1 -> 89 | B109: Safety equipment | D109: safety shower, eye bath, clean water hose with spray gun and hose spool. To be specified | E109: not applicable
A111: =A109+1 -> 90 | B111: Piping | E111: not applicable
A112: =A111+1 -> 91 | B112: Piping material - chemicals | D112: To be specified | E112: not applicable
A114: =A112+1 -> 92 | B114: Instrumentation | E114: not applicable
A115: =A114+1 -> 93 | B115: Level switch | D115: To be supplied | E115: not applicable
A116: =A115+1 -> 94 | B116: Flow meter | D116: To be supplied | E116: not applicable
A117: 95 | B117: Weight system | D117: If used for dosing/consumption | E117: not applicable
A119: =A117+1 -> 96 | B119: Polymer (sludge dewatering)
A120: =A119+1 -> 97 | B120: Polymer to be used | D120: To be specified | E120: not applicable
A121: =A120+1 -> 98 | B121: Chemical solution | C121: % | D121: To be specified | E121: not applicable
A123: =A121+1 -> 99 | B123: Constructions | E123: not applicable
A124: =A123+1 -> 100 | B124: Position (where to be installed), | D124: In Technical Building. To be specified | E124: not applicable
A125: =A124+1 -> 101 | B125: Foundation, material | D125: To be specified | E125: not applicable
A126: 102 | B126: Protection/coating | D126: To be specified | E126: not applicable
A127: 103 | B127: Drain connections | D127: To be specified | E127: not applicable
A129: =A127+1 -> 104 | B129: Storage & Mixing facility of polymer | E129: not applicable
A130: =A129+1 -> 105 | B130: Storage facility of dry polymer | C130: m2 | D130: To be specified | E130: not applicable
A131: =A130+1 -> 106 | B131: Filling/mixing facility (dry --> liquid) | D131: To be specified | E131: not applicable
A133: =A131+1 -> 107 | B133: Dosing pump | C133: pcs | E133: not applicable
A134: =A133+1 -> 108 | B134: Type | D134: To be specified | E134: not applicable
A135: =A134+1 -> 109 | B135: Capacity of pump | C135: m3/h | D135: To be specified | E135: not applicable
A136: 110 | B136: Pumping head | C136: bar | D136: To be specified | E136: not applicable
A137: 111 | B137: Pump Speed | C137: rpm | D137: To be specified | E137: not applicable
A138: 112 | B138: Size of motor | C138: kW | D138: To be specified | E138: not applicable
A139: 113 | B139: Frequency converter | D139: To be supplied | E139: not applicable
A140: 114 | B140: Impeller construction material | D140: To be specified | E140: not applicable
A141: 115 | B141: Pump house material | D141: To be specified | E141: not applicable
A142: 116 | B142: Monitoring system for chemical sonsumption | D142: safety shower, eye bath, clean water hose with spray gun and hose spool. To be specified | E142: not applicable
A143: 117 | B143: Filling connections incl. Couplings | D143: To be specified | E143: not applicable
A145: =A143+1 -> 118 | B145: Other Equipment | E145: not applicable
A146: =A145+1 -> 119 | B146: Safety equipment | D146: safety shower, eye bath, clean water hose with spray gun and hose spool. To be specified | E146: not applicable
A148: =A146+1 -> 120 | B148: Piping | E148: not applicable
A149: =A148+1 -> 121 | B149: Piping material - chemicals | D149: To be specified | E149: not applicable
A151: =A149+1 -> 122 | B151: Instrumentation | E151: not applicable
A152: =A151+1 -> 123 | B152: Level switch | D152: To be supplied | E152: not applicable
A153: =A152+1 -> 124 | B153: Flow meter | D153: To be supplied | E153: not applicable
A154: 125 | B154: Weight system | D154: If used for dosing/consumption | E154: not applicable
A156: =A154+1 -> 126 | B156: Polymer (dissolved air flotation)
A157: =A156+1 -> 127 | B157: Polymer to be used | D157: To be specified | E157: not applicable
A158: =A157+1 -> 128 | B158: Chemical solution | C158: % | D158: To be specified | E158: not applicable
A160: =A158+1 -> 129 | B160: Constructions | E160: not applicable
A161: =A160+1 -> 130 | B161: Position (where to be installed) | D161: In Technical building? To be specified | E161: not applicable
A162: =A161+1 -> 131 | B162: Foundation, material | D162: To be specified | E162: not applicable
A163: 132 | B163: Protection/coating | D163: To be specified | E163: not applicable
A164: 133 | B164: Drain connections | D164: To be specified | E164: not applicable
A166: =A164+1 -> 134 | B166: Storage & Mixing facility of polymer | E166: not applicable
A167: =A166+1 -> 135 | B167: Storage facility of dry polymer | C167: m2 | D167: To be specified | E167: not applicable
A168: =A167+1 -> 136 | B168: Filling/mixing facility (dry --> liquid) | D168: To be specified | E168: not applicable
A170: =A168+1 -> 137 | B170: Dosing pump | C170: pcs | E170: not applicable
A171: =A170+1 -> 138 | B171: Type | D171: To be specified | E171: not applicable
A172: =A171+1 -> 139 | B172: Capacity of pump | C172: m3/h | D172: To be specified | E172: not applicable
A173: 140 | B173: Pumping head | C173: bar | D173: To be specified | E173: not applicable
A174: 141 | B174: Pump Speed | C174: rpm | D174: To be specified | E174: not applicable
A175: 142 | B175: Size of motor | C175: kW | D175: To be specified | E175: not applicable
A176: 143 | B176: Frequency converter | D176: To be supplied | E176: not applicable
A177: 144 | B177: Impeller construction material | D177: To be specified | E177: not applicable
A178: 145 | B178: Pump house material | D178: To be specified | E178: not applicable
A179: 146 | B179: Monitoring system for chemical sonsumption | D179: e.g. weight system, flow measuring, level. To be specified | E179: not applicable
A180: 147 | B180: Filling connections incl. Couplings | D180: To be specified | E180: not applicable
A182: =A180+1 -> 148 | B182: Other Equipment | E182: not applicable
A183: =A182+1 -> 149 | B183: Safety equipment | D183: safety shower, eye bath, clean water hose with spray gun and hose spool. To be specified | E183: not applicable
A185: =A183+1 -> 150 | B185: Piping | E185: not applicable
A186: =A185+1 -> 151 | B186: Piping material - chemicals | D186: To be specified | E186: not applicable
A188: =A186+1 -> 152 | B188: Instrumentation | E188: not applicable
A189: =A188+1 -> 153 | B189: Level switch | D189: To be supplied | E189: not applicable
A190: =A189+1 -> 154 | B190: Flow meter | D190: To be supplied | E190: not applicable
A191: 155 | B191: Weight system | D191: If used for dosing/consumption | E191: not applicable
A193: =A191+1 -> 156 | B193: Other chemicals [Note: If required]
A194: =A193+1 -> 157 | B194: Type of chemical and application area | D194: To be specified | E194: antifoam
A195: =A194+1 -> 158 | B195: Chemical solution | C195: % | D195: To be specified | E195: 100
A197: =A195+1 -> 159 | B197: Constructions
A198: =A197+1 -> 160 | B198: Bunded area, dimensions | D198: To be specified | E198: standard spill box
A199: =A198+1 -> 161 | B199: Position (where to be installed), | D199: In Technical building? To be specified | E199: confirmed
A200: 162 | B200: Foundation, material | D200: To be specified | E200: concrete
A201: 163 | B201: Protection/coating | D201: To be specified | E201: by civil contractor
A202: 164 | B202: Drain connections | D202: To be specified | E202: by civil contractor
A204: =A202+1 -> 165 | B204: Storage tanks
A205: =A204+1 -> 166 | B205: Capacity | C205: m3 | D205: To be specified | E205: 0.06
A206: =A205+1 -> 167 | B206: Dimensions | C206: L/B/H or D/H | D206: To be specified | E206: standard canister
A207: 168 | B207: Tank material and quality | D207: To be specified | E207: standard canister
A209: =A207+1 -> 169 | B209: Dosing pump | C209: pcs | E209: 1
A210: =A209+1 -> 170 | B210: Type | D210: To be specified | E210: electromagnetic diaphragm dosing pump
A211: =A210+1 -> 171 | B211: Capacity of pump | C211: m3/h | D211: To be specified | E211: 0.013
A212: 172 | B212: Pumping head | C212: bar | D212: To be specified | E212: 3
A213: 173 | B213: Pump Speed | C213: rpm | D213: To be specified | E213: 250 (stroke frequency)
A214: 174 | B214: Size of motor | C214: kW | D214: To be specified | E214: 0.018
A215: 175 | B215: Frequency converter | D215: To be supplied | E215: not confirmed
A216: 176 | B216: Impeller construction material | D216: To be specified | E216: not applicable
A217: 177 | B217: Pump house material | D217: To be specified | E217: PP (dosing head)
A218: 178 | B218: Monitoring system for chemical sonsumption | D218: e.g. weight system, flow measuring, level. To be specified | E218: not applicable
A219: 179 | B219: Filling connections incl. Couplings | D219: To be specified | E219: not applicable
A221: =A219+1 -> 180 | B221: Other Equipment
A222: =A221+1 -> 181 | B222: Safety equipment | D222: safety shower, eye bath, clean water hose with spray gun and hose spool. To be specified | E222: confirmed, 1 safety shower with eye wash and 1 clean water hose with spray gun and hose spool in chemical area
A224: =A222+1 -> 182 | B224: Piping
A225: =A224+1 -> 183 | B225: Piping material - chemicals | D225: To be specified | E225: HDPE
A227: =A225+1 -> 184 | B227: Instrumentation
A228: =A227+1 -> 185 | B228: Level switch | D228: To be supplied | E228: confirmed
A229: =A228+1 -> 186 | B229: Flow meter | D229: To be supplied | E229: not confirmed
A230: 187 | B230: Weight system | D230: If used for dosing/consumption | E230: not confirmed

Sheet Anaerobic Unit
A1: Anaerobic Unit | F1: Front Page
A2: No. | B2: Description | C2: Units | D2: AB InBev | E2: Contractor | F2: Notes | G2: ABInBev Notes
A3: 1 | B3: Bio-process specification
A4: =A3+1 -> 2 | B4: Neutalisation (correction) tank or stand pipe if applicable | C4: pcs | E4: not applicable | F4: 15ton COD to be traeted
A5: =A4+1 -> 3 | B5: Minimum hydraulic retention Time | C5: h | D5: To be specified | E5: not applicable
A6: =A5+1 -> 4 | B6: Construction: Material | D6: To be specified | E6: not applicable
A7: 5 | B7: Shape of tank | D7: To be specified | E7: not applicable
A8: 6 | B8: Dimension of tank | C8: L/B/H or D/H | D8: To be specified | E8: not applicable
A9: 7 | B9: Net volume | C9: m3 | D9: To be specified | E9: not applicable
A10: 8 | B10: Gross volume | C10: m3 | D10: To be specified | E10: not applicable
A11: 9 | B11: Thickness of tank wall | C11: mm | D11: To be specified | E11: not applicable
A12: 10 | B12: Coating of wall | D12: To be specified | E12: not applicable
A13: 11 | B13: Coating of bottom | D13: To be specified | E13: not applicable
A14: 12 | B14: Coating of top | D14: To be specified | E14: not applicable
A15: 13 | B15: Top cover | D15: To be specified | E15: not applicable
A16: 14 | B16: Manhole incl. safety switch | D16: To be specified | E16: not applicable
A17: 15 | B17: Manhole diameter | C17: mm | D17: To be specified | E17: not applicable
A18: 16 | B18: Insulation material (if applicable based on ambient temperature) | D18: To be specified | E18: not applicable
A19: 17 | B19: Insulation thickness | C19: mm | D19: To be specified | E19: not applicable
A20: 18 | B20: Cladding of insulated tank. | D20: To be specified | E20: not applicable
A21: 19 | B21: External ladder to tank top or Common walkway for group of vessels | D21: To be specified | E21: not applicable
A22: 20 | B22: Material of Ladder or Walkway | D22: To be specified | E22: not applicable
A23: 21 | B23: Protection handrail of tank top | D23: To be specified | E23: not applicable
A24: 22 | B24: Material of tank top handrail | D24: To be specified | E24: not applicable
A25: 23 | B25: Overflow pipe | D25: To be specified | E25: not applicable
A26: 24 | B26: Odor removal | D26: To be specified | E26: not applicable
A27: 25 | B27: Vacuum-pressure protection | D27: To be specified | E27: not applicable
A28: 26 | B28: By-pass facility to next process unit | D28: To be specified | E28: not applicable
A29: 27 | B29: Anaerobic recirculation feed to correction tank min | C29: m3/h | D29: To be specified | E29: not applicable
A30: 28 | B30: Anaerobic recirculation feed to correction tank max | C30: m3/h | D30: To be specified | E30: not applicable
A32: =A30+1 -> 29 | B32: Anaerobic reactor feed pumps | C32: pcs | D32: To be specified min one working and one back up | E32: already included in datasheet EQ-Buffer - Storage
A33: =A32+1 -> 30 | B33: Make | D33: To be specified | E33: not applicable
A34: =A33+1 -> 31 | B34: Type | D34: To be specified | E34: not applicable
A35: 32 | B35: Capacity per pump | C35: m3/h | D35: To be specified | E35: not applicable
A36: 33 | B36: Pumping head | C36: Bar | D36: To be specified | E36: not applicable
A37: 34 | B37: Pump speed | C37: rpm | D37: To be specified | E37: not applicable
A38: 35 | B38: Size of motor | C38: Kw | D38: To be specified | E38: not applicable
A39: 36 | B39: Motor efficiency | D39: To be specified | E39: not applicable
A40: 37 | B40: Frequency converter | D40: To be specified | E40: not applicable
A41: 38 | B41: Impeller construction material | D41: To be specified | E41: not applicable
A42: 39 | B42: Pump house material | D42: To be specified | E42: not applicable
A43: 40 | B43: Flowmeter | D43: To be specified | E43: not applicable
A44: 41 | B44: Pressure transmitter | D44: To be specified | E44: not applicable
A45: 42 | B45: Pressure meter | D45: To be specified | E45: not applicable
A46: 43 | B46: Sample valves make | D46: To be specified | E46: not applicable
A47: 44 | B47: Sample valves material | D47: To be specified | E47: not applicable
A48: 45 | B48: Stop valve | D48: To be specified | E48: not applicable
A50: =A48+1 -> 46 | B50: Instrumentation Neutralisation tank & anaerobic feed
A51: =A50+1 -> 47 | B51: Tank level control HH,H,L,LL | D51: To be supplied | E51: not applicable
A52: =A51+1 -> 48 | B52: pH control | D52: To be supplied | E52: already included in datasheet EQ-Buffer - Storage
A53: 49 | B53: Temperature control | D53: To be supplied | E53: already included in datasheet EQ-Buffer - Storage
A54: 50 | B54: Flow measurement | D54: To be supplied | E54: already included in datasheet EQ-Buffer - Storage
A55: 51 | B55: VFA inline control (optional) | D55: To be specified | E55: not confirmed
A56: 52 | B56: COD inline control (optional) | D56: To be specified | E56: not confirmed
A57: 53 | B57: TSS inline control (optional) | D57: To be specified | E57: already included in datasheet EQ-Buffer - Storage
A59: =A57+1 -> 54 | B59: Anaerobic reactor type | D59: To be specified, UASB, EGSB, IC, DACS.. | E59: ANUBIX™-T by GWE (EGSB)
A60: =A59+1 -> 55 | B60: Anaerobic reactor | C60: pcs | D60: To be specified | E60: 1
A61: =A60+1 -> 56 | B61: Anaerobic active volume | C61: m3 | D61: To be specified | E61: 1030
A62: 57 | B62: Anaerobic reactor surface | C62: m2 | D62: To be specified | E62: 1070
A63: 58 | B63: Anaerobic volumteric loading rate | C63: kgCOD/m3 | D63: To be specified | E63: 14.6
A64: 59 | B64: Anaerobic capacity | C64: kgCOD | D64: To be specified | E64: 15000 kg COD/day
A65: 60 | B65: Up flow velocity | C65: m/h | D65: To be specified | E65: 3
A66: 61 | B66: Seed sludge delivery | C66: ton Volatile solids | D66: To be specified | E66: included
A67: 62 | B67: Seed sludge methanogen activity | C67: kgCOD/kgVS/day | D67: To be specified | E67: to be confirmed
A68: 63 | B68: Bio gas generation | C68: m3/kg COD removed | D68: To be specified | E68: 0,3 Nm³ CH4/kg CODtot removed
A69: 64 | B69: Bio gas flow peak | C69: m3/h | D69: To be specified | E69: 275
A70: 65 | B70: Bio gas flow | C70: m3/day | D70: To be specified | E70: 230
A71: 66 | B71: Anaerobic reactor COD removal effciency | C71: % | D71: 85% 'To be specified | E71: to be discussed, based on actual TSS concentration
A72: 67 | B72: Distribution loop flushing | D72: To be specified ( automatic or manual) | E72: manual
A73: 68 | B73: Construction: Material | D73: To be specified | E73: Coated steel
A74: 69 | B74: Shape of tank | D74: To be specified | E74: circular
A75: 70 | B75: Dimension of tank | C75: L/B/H or D/H | D75: To be specified | E75: 10,1/13,3
A76: 71 | B76: Gross volume | C76: m3 | D76: To be specified | E76: 1030
A77: 72 | B77: Operating pressure | C77: barg | D77: To be specified | E77: -0,005 - 0,03
A78: 73 | B78: Operating temperature | C78: °C | D78: To be specified | E78: 32< ... <40
A79: 74 | B79: Thickness of tank wall | C79: mm | D79: To be specified | E79: To be confirmed during engineering
A80: 75 | B80: Coating of wall | D80: To be specified | E80: Epoxy or glass
A81: 76 | B81: Coating of bottom | D81: To be specified | E81: coating of concrete slab not required
A82: 77 | B82: Coating of top | D82: To be specified | E82: not applicable
A83: 78 | B83: Top cover | D83: To be specified | E83: stainless steel
A84: 79 | B84: Manhole incl. safety switch | D84: To be specified | E84: Manhole without safety switch
A85: 80 | B85: Manhole diameter | C85: mm | D85: To be specified | E85: 800
A86: 81 | B86: Insulation material (if applicable based on ambient temperature) | D86: To be specified | E86: Rockwool (option)
A87: 82 | B87: Insulation thickness | C87: mm | D87: To be specified | E87: 50
A88: 83 | B88: Cladding of insulated tank. | D88: To be specified | E88: Included
A89: 84 | B89: External ladder to tank top or Common walkway for group of vessels | D89: To be specified | E89: Included
A90: 85 | B90: Material of Ladder or Walkway | D90: To be specified | E90: Galvanized steel
A91: 86 | B91: Protection handrail of tank top | D91: To be specified | E91: Included
A92: 87 | B92: Material of tank top handrail | D92: To be specified | E92: HDG steel
A93: 88 | B93: Odor removal | D93: To be specified | E93: Included
A94: 89 | B94: Vacuum-pressure protection | D94: To be specified | E94: Breather valve
A95: 90 | B95: By-pass facility to next process unit | D95: To be specified | E95: Confirmed
A96: 91 | B96: Sample valves make | D96: To be specified | E96: Sodeco Valves
A97: 92 | B97: Sample valves material | D97: To be specified | E97: stainless steel
A99: =A97+1 -> 93 | B99: Anaerobic reactor instrumentation
A100: =A99+1 -> 94 | B100: pH control | D100: To be supplied | E100: confirmed
A101: =A100+1 -> 95 | B101: Temperature control | D101: To be supplied | E101: confirmed
A102: 96 | B102: Biogas flow measurement | D102: To be supplied | E102: confirmed
A103: 97 | B103: Gas domes and bio gas line fire and explosion controls | D103: To be supplied ATEX compliant - 'over pressure valves, flame arrestors | E103: breather valve
A104: 98 | B104: VFA inline control (optional) | D104: To be specified | E104: not confirmed
A105: 99 | B105: COD inline control (optional) | D105: To be specified | E105: not confirmed
A106: 100 | B106: Biomass inline solids control (optional) | D106: To be specified | E106: confirmed
A107: 101 | B107: Anaerobic effluent inline TSS contriol (optional) | D107: To be specified | E107: not confirmed
A109: =A107+1 -> 102 | B109: Anaerobic reactor recirculation pumps (if applicable) | C109: pcs | D109: To be specified | E109: 1 + 1 standby
A110: =A109+1 -> 103 | B110: Make | D110: To be specified | E110: KSB
A111: =A110+1 -> 104 | B111: Type | D111: To be specified | E111: centrifugal
A112: 105 | B112: Capacity per pump | C112: m3/h | D112: To be specified | E112: 235
A113: 106 | B113: Pumping head | C113: Bar | D113: To be specified | E113: 0.6
A114: 107 | B114: Pump speed | C114: rpm | D114: To be specified | E114: 2900
A115: 108 | B115: Size of motor | C115: Kw | D115: To be specified | E115: 7.5
A116: 109 | B116: Motor efficiency | D116: To be specified | E116: IE3
A117: 110 | B117: Frequency converter | D117: To be specified | E117: confirmed
A118: 111 | B118: Impeller construction material | D118: To be specified | E118: stainless steel
A119: 112 | B119: Pump house material | D119: To be specified | E119: cast iron
A120: 113 | B120: Flowmeter | D120: To be specified | E120: confirmed
A121: 114 | B121: Pressure transmitter | D121: To be specified | E121: not confirmed
A122: 115 | B122: Pressure meter | D122: To be specified | E122: confirmed, 1 manometer per pump
A123: 116 | B123: Stop valve | D123: To be specified | E123: confirmed
A125: =A123+1 -> 117 | B125: Anaerobic sludge pump | C125: pcs | E125: not included
A126: =A125+1 -> 118 | B126: Type | D126: To be specified | E126: not included
A127: =A126+1 -> 119 | B127: Capacity of pump | C127: m3/h | D127: To be specified | E127: not included
A128: 120 | B128: Pumping head | C128: bar | D128: To be specified | E128: not included
A129: 121 | B129: Pump Speed | C129: rpm | D129: To be specified | E129: not included
A130: 122 | B130: Size of motor | C130: kW | D130: To be specified | E130: not included
A131: 123 | B131: Frequency converter | D131: To be supplied | E131: not included
A132: 124 | B132: Impeller construction material | D132: To be specified | E132: not included
A133: 125 | B133: Pump house material | D133: To be specified | E133: not included
A136: =A133+1 -> 126 | B136: Heating/cooling unit
A137: =A136+1 -> 127 | B137: Type of Cooling/heating | D137: To be specified | E137: wastewater temperature to be clarified
A138: =A137+1 -> 128 | B138: Capacity | C138: kW | D138: To be specified | E138: wastewater temperature to be clarified
A139: 129 | B139: Efficiency | C139: % | D139: To be specified | E139: wastewater temperature to be clarified
A141: =A139+1 -> 130 | B141: Storage tank for granular sludge | E141: not included
A142: =A141+1 -> 131 | B142: Material of tank | D142: To be specified | E142: not included
A143: =A142+1 -> 132 | B143: Capacity of tank | C143: m3 | D143: To be specified | E143: not included
A145: =A143+1 -> 133 | B145: Piping
A146: =A145+1 -> 134 | B146: Piping material - Effluent | D146: To be specified | E146: HDPE
A147: =A146+1 -> 135 | B147: Piping material - Biogas | D147: To be specified | E147: stainless steel AISI 304
A148: 136 | B148: Piping material - Vent air | D148: To be specified | E148: HDPE

Sheet Biogas Treatment
A1: Biogas Treatment | F1: Front Page
A2: No. | B2: Description | C2: Units | D2: AB InBev | E2: Contractor | F2: Notes | G2: ABInBev Notes
A3: 1 | B3: PROCESS UNITS
A4: =A3+1 -> 2 | B4: Peak conc. of H2S in biogas | C4: ppm | D4: 3500 ppm. To be specified | E4: confirmed
A5: =A4+1 -> 3 | B5: Max conc. of H2S in cleaned biogas | C5: ppm | D5: 100 ppm. To be specified | E5: confirmed
A6: =A5+1 -> 4 | B6: Bio gas flow min | C6: m3/h | D6: To be specified | E6: 215 Nm³/h
A7: 5 | B7: Bio gas flow max | C7: m3/h | D7: To be specified | E7: 235 Nm³/h
A8: 6 | B8: Bio gas flow aver. | C8: m3/h | D8: To be specified | E8: 227 Nm³/h
A10: =A5+1 -> 4 | B10: Concrete platform foundation for equipment
A11: =A10+1 -> 5 | B11: Dimension of platform | C11: mm | D11: To be specified | E11: 9000x9000 to be confirmed during engineering. Based on the site layout
A12: =A11+1 -> 6 | B12: Quality of concrete | D12: To be specified | E12: To be determined during engineering
A13: 7 | B13: Coating | D13: To be specified | E13: not applicable
A14: 8 | B14: Other constructions | D14: To be specified | E14: shed by civil contractor
A15: 9 | B15: Application of construction | D15: To be specified
A16: 10 | B16: Dimension of construction | D16: To be specified
A17: 11 | B17: Quality of concrete | D17: To be specified | E17: To be determined during engineering
A18: 12 | B18: Coating | D18: To be specified | E18: not applicable
A20: =A18+1 -> 13 | B20: Biogas processing unit
A21: =A20+1 -> 14 | B21: Type of biogas processing | D21: To be specified (biological, chemical, active carbon, combined) | E21: BIO-SULFURIX™ by GWE + activated carbon
A22: =A21+1 -> 15 | B22: Process units | C22: pcs | D22: To be specified | E22: 1 biological filter + 1 activated carbon filter on a rental base
A23: 16 | B23: Units materials: Process tank | D23: To be specified | E23: biological filter: GRP activated carbon filter: stainless steel
A24: 17 | B24: Process unit dimensions | C24: L/B/H or D/H | D24: To be specified | E24: biological filter: 2,5 m/10 m activated carbon filter: 2,3 m/1,6 m/1,5 m
A25: 18 | B25: Internal media material [Note: If any] | D25: To be specified
A26: 19 | B26: Active carbon ammount ( if applicable) | C26: kg | D26: To be specified | E26: +/- 1000
A27: 20 | B27: Active carbon regeneration ( if applicable) | C27: times/year | D27: To be specified | E27: regeneration is done off site by supplier of rental unit; filter replacement 1 x/9 months
A28: 21 | B28: Active carbon consumption ( if applicable) | C28: kg/year | D28: To be specified | E28: +/- 1300 kg/y based on 350 days/year operation
A29: 22 | B29: Causitic dosage (if applicable) | C29: m3/day | D29: To be specified | E29: not applicable
A30: 23 | B30: Causitic concentration (if applicable) | C30: % | D30: To be specified | E30: not applicable
A31: 24 | B31: Caustic regeneration unit (if applicable) | D31: To be specified | E31: not applicable
A32: 25 | B32: Bio media incubator(if applicable) | D32: To be specified | E32: not applicable
A33: 26 | B33: Bio media seed (if applicable) | C33: unit/year | D33: To be specified | E33: not applicable
A34: 27 | B34: Nutrient dosage (if applicable) | C34: unit/year | D34: To be specified | E34: biological filter: ca. 650 kg/year
A35: 28 | B35: Water usage | C35: m3/h | D35: To be specified ( recommended final tretaed effluent to be used) | E35: biological filter: ca. 0,12 m³/h
A36: 29 | B36: Type of cendensate well | D36: To be specified | E36: not applicable
A37: 30 | B37: Effective volume of condensate well | C37: L | D37: To be specified | E37: not applicable
A39: =A37+1 -> 31 | B39: Processing unit recirculation pump (if applicable) | C39: pcs | E39: 1, as part of BIO-SULFURIX™ package unit
A40: =A39+1 -> 32 | B40: Type | D40: To be specified | E40: centrifugal, magnetic coupled
A41: =A40+1 -> 33 | B41: Capacity of pump | C41: m3/h | D41: To be specified | E41: 20
A42: 34 | B42: Pumping head | C42: bar | D42: To be specified | E42: 1.8
A43: 35 | B43: Pump Speed | C43: rpm | D43: To be specified | E43: 2900
A44: 36 | B44: Size of motor | C44: kW | D44: To be specified | E44: 2.2
A45: 37 | B45: Frequency converter | D45: To be supplied | E45: not confirmed
A46: 38 | B46: Impeller construction material | D46: To be specified | E46: PP
A47: 39 | B47: Pump house material | D47: To be specified | E47: PP
A49: =A47+1 -> 40 | B49: Biogas Dryer
A50: =A49+1 -> 41 | B50: Type of dryer | D50: To be specified | E50: GASODRIX™ by GWE
A51: =A50+1 -> 42 | B51: Numbers of dryers | C51: pcs | D51: To be specified | E51: 1
A52: 43 | B52: Flow capacity | C52: Nm3/h | D52: To be specified | E52: 280
A53: 44 | B53: Cooling capacity | C53: KW | D53: To be specified | E53: 9
A55: =A53+1 -> 45 | B55: Biogas buffer/storage
A56: =A55+1 -> 46 | B56: Type of biogas buffer | D56: To be specified | E56: not applicable
A57: =A56+1 -> 47 | B57: Buffer sheets on sides and roof [Note: If any] | D57: To be specified | E57: not applicable
A58: 48 | B58: Material: Biogas buffer | D58: To be specified | E58: not applicable
A59: 49 | B59: Buffer tank effective volume | C59: m3 | D59: To be specified | E59: not applicable
A60: 50 | B60: Design retention time of buffer tank | C60: h | D60: To be specified | E60: not applicable
A61: 51 | B61: Operating pressure | C61: mbar | D61: To be specified | E61: not applicable
A62: 52 | B62: Pressure/vacuum regulation | D62: To be specified | E62: not applicable
A63: 53 | B63: Condensate drain facility | D63: To be specified | E63: not applicable
A65: =A63+1 -> 54 | B65: Biogas flare
A66: =A65+1 -> 55 | B66: Type of biogas Flare | D66: To be specified | E66: shielded
A67: =A66+1 -> 56 | B67: Maximum capacity of flare | C67: m3/h | D67: To be specified | E67: 54 Nm3/h
A68: 57 | B68: Minimum capacity of flare | C68: m3/h | D68: To be specified | E68: 270 Nm3/h
A69: 58 | B69: Ignition system | D69: To be specified | E69: Automatic
A71: =A69+1 -> 59 | B71: Gas pump for biogas (supply to energy utility) | C71: pcs | E71: 1
A72: =A71+1 -> 60 | B72: Type | D72: To be specified | E72: side channel blower
A73: =A72+1 -> 61 | B73: Capacity of pump | C73: m3/h | D73: To be specified | E73: 260 Nm³/h
A74: 62 | B74: Pumping head | C74: bar | D74: To be specified | E74: 0.22
A75: 63 | B75: Pump Speed | C75: rpm | D75: To be specified | E75: 3200
A76: 64 | B76: Size of motor | C76: kW | D76: To be specified | E76: 5.5
A77: 65 | B77: Frequency converter | D77: To be supplied | E77: confirmed
A78: 66 | B78: Impeller construction material | D78: To be specified | E78: aluminum alloy
A79: 67 | B79: Pump house material | D79: To be specified | E79: aluminum alloy
A80: =A79+1 -> 68 | B80: Lifting equipment | D80: To be specified | E80: not applicable
A81: 69 | B81: Working pressure | C81: bar | D81: To be specified | E81: 0.22
A83: =A81+1 -> 70 | B83: Other Equipment
A84: =A83+1 -> 71 | B84: Purpose and application | D84: To be specified | E84: biogas demister on biogas collector
A86: =A84+1 -> 72 | B86: Piping
A87: =A86+1 -> 73 | B87: Piping material - biogas | D87: To be specified | E87: stainless steel AISI 304 + HDPE
A88: =A87+1 -> 74 | B88: Piping material - water/liquids | D88: To be specified | E88: HDPE
A89: 75 | B89: Piping material - chemicals | D89: To be specified | E89: HDPE
A91: =A89+1 -> 76 | B91: Instrumentation
A92: =A91+1 -> 77 | B92: Level switch | D92: To be supplied | E92: confirmed, as part of BIO-SULFURIX™ package unit
A93: =A92+1 -> 78 | B93: pH Transmitter | D93: To be supplied | E93: not applicable
A94: 79 | B94: Temperature transmitter | D94: To be supplied | E94: confirmed
A95: 80 | B95: Bio gas processing fire and explosion controls | D95: To be supplied ATEX compliant - 'over pressure valves, flame arrestors | E95: confirmed
A96: 81 | B96: Pressure transmitter | D96: To be supplied | E96: confirmed
A97: 82 | B97: Flow meter (water) | D97: To be supplied | E97: not confirmed
A98: 83 | B98: Flow meter (Biogas) | D98: To be specified | E98: confirmed
A99: 84 | B99: Flow meter (Chemcials) | D99: To be specified | E99: not applicable
A100: 85 | B100: Biogas analyser (inlet outlet) | D100: To be specified | E100: confirmed, 2 sample points (after biogas dryer and after activated carbon filter)
A101: 86 | B101: Biogas analyser. Parameters to analyse | D101: H2S | E101: confirmed, including CH4 measurement
A102: 87 | B102: Other instruments. Appplication, type and brand | D102: To be specified | E102: not applicable

Sheet Aerobic Unit
A1: Aerobic Unit | F1: Front Page
A2: No. | B2: Description | C2: Units | D2: AB InBev | E2: Contractor | F2: Notes | G2: ABInBev Notes
A3: 1 | B3: Bio-process specification
A4: =A3+1 -> 2 | B4: Type of aerobic treatment | D4: To be specified ( CAS, SBR, MBR | E4: post-aeration
A5: =A4+1 -> 3 | B5: Number of bio-reactors | C5: pcs. | D5: To be specified | E5: 1
A7: =A5+1 -> 4 | B7: Bio rector technology specifications (describe per unit)
A8: =A6+1 -> 1 | B8: Retention time | C8: h | D8: To be specified | E8: 1
A9: 5 | B9: Active aeration volume | C9: m3 | D9: To be specified | E9: 125
A10: 2 | B10: Volumetric loading rate | C10: kgCOD/m3/d | D10: To be specified | E10: not applicable
A11: 6 | B11: Food Mass Ratio | C11: kgCOD/kgMLSS/d | D11: To be specified | E11: not applicable
A12: 3 | B12: MLSS concentration | C12: kg/m3 | D12: To be specified | E12: not applicable
A13: 7 | B13: MLSS mass | C13: kg | D13: To be specified | E13: not applicable
A14: 4 | B14: Sludge age | C14: days | D14: To be specified | E14: not applicable
A15: 8 | B15: Type of aerator selected | D15: To be specified ( Surface, submerged diffusers, ject aeration..) | E15: submerged diffusers
A16: 5 | B16: Design oxygen concentration for aeration phase | C16: ppm | D16: To be specified | E16: 2 (for design of aeration capacity)
A17: 9 | B17: Endogene respiration | C17: kgO2/h | D17: To be specified | E17: not applicable
A18: 6 | B18: Exogene respiration | C18: kgO2/h | D18: To be specified | E18: not applicable
A19: 10 | B19: Nitrification respiration | C19: kgO2/h | D19: To be specified | E19: not applicable
A20: 7 | B20: Denitrification respiration | C20: kgO2/h | D20: To be specified | E20: not applicable
A21: 11 | B21: Total respiration (AOR) | C21: kgO2/h | D21: To be specified | E21: 21.1
A22: 8 | B22: SOTE Standard Oxygen Transfer Efficiency | C22: % | D22: To be specified | E22: 28.4
A23: 12 | B23: SOTR Standard Oxygen Transfer Rate | C23: kgO2/h | D23: To be specified | E23: 45.5
A24: 9 | B24: Aerator efficiency | C24: kgO2/kW | D24: To be specified | E24: 3
A25: 13 | B25: Aerator capacity needed | C25: kW | D25: To be specified | E25: =E23/E24 -> 15.16666667
A26: 10 | B26: Aerator capacity slected | C26: kW | D26: To be specified | E26: 22
A27: 14 | B27: Anoxic volume | C27: m3 | D27: To be specified | E27: not applicable
A28: 11 | B28: Design COD:N:P ratio | D28: To be specified | E28: not applicable
A29: 15 | B29: Min. COD needed for Nitrogen removal | C29: kg/day | D29: To be specified | E29: not applicable
A30: 12 | B30: Sedimentation volume | C30: m3 | D30: To be specified | E30: not applicable
A31: 16 | B31: Sedimentation surface | C31: m2 | D31: To be specified | E31: not applicable
A32: 13 | B32: Settling velocity | C32: m/h | D32: To be specified | E32: not applicable
A33: 17 | B33: Sedimentation surface loading rate | C33: kgTSS/m2/h | D33: To be specified | E33: not applicable
A34: 14 | B34: RAS/WAS sludge concentration | C34: kg/m3 | D34: To be specified | E34: not applicable
A35: 18 | B35: RAS sludge flow ( if applicable) | C35: m3/h | D35: To be specified | E35: not applicable
A36: 15 | B36: MBR 'Membrane types (if applicable) | D36: To be specified | E36: not applicable
A37: 19 | B37: MBR 'Membrane material (if applicable) | D37: To be specified | E37: not applicable
A38: 16 | B38: MBR flux | C38: LMH | D38: To be specified | E38: not applicable
A39: =A36+1 -> 16 | B39: Pore size of membranes (if applicable) | C39: micron | D39: To be specified | E39: not applicable
A40: =A37+1 -> 20 | B40: Number of membrane units (if applicable) | C40: pcs | D40: To be specified | E40: not applicable
A41: 17 | B41: Total membrane surface (if applicable) | C41: m2 | D41: To be specified | E41: not applicable
A42: 21 | B42: CIP system, type and chemicals to use (if applicable) | D42: To be specified | E42: not applicable
A44: =A42+1 -> 22 | B44: Bio rector construction data (describe per unit)
A45: =A44+1 -> 23 | B45: Construction: Material | D45: To be specified | E45: Coated steel
A46: =A44+1 -> 23 | B46: Shape of tank | D46: To be specified | E46: circular
A47: 24 | B47: Dimension of tank | C47: L/B/H or D/H | D47: To be specified | E47: 5,5/6,1
A48: 24 | B48: Gross volume | C48: m3 | D48: To be specified | E48: 140
A49: =A48+1 -> 25 | B49: Operating temperature | C49: °C | D49: To be specified | E49: effluent temperature of anaerobic unit
A50: =A49+1 -> 26 | B50: Thickness of tank wall | C50: mm | D50: To be specified | E50: To be confirmed during engineering
A51: 27 | B51: Coating of wall | D51: To be specified | E51: Epoxy or glass
A52: 28 | B52: Coating of bottom | D52: To be specified | E52: coating of concrete slab not required
A53: 29 | B53: Manhole diameter | C53: mm | D53: To be specified | E53: 800
A54: 30 | B54: Insulation material (if applicable based on ambient temperature) | D54: To be specified | E54: not applicable
A55: 31 | B55: Insulation thickness | C55: mm | D55: To be specified | E55: not applicable
A56: 32 | B56: Cladding of insulated tank. | D56: To be specified | E56: not applicable
A57: 33 | B57: External ladder to tank top or Common walkway for group of vessels | D57: To be specified | E57: Included
A58: 34 | B58: Material of Ladder or Walkway | D58: To be specified | E58: Galvanized steel
A59: 35 | B59: Protection handrail of tank top | D59: To be specified | E59: no peripheral handrailing, only on working platform
A60: 36 | B60: Material of tank top handrail | D60: To be specified
A61: 37 | B61: By-pass facility to next process unit | D61: To be specified | E61: confirmed
A62: 38 | B62: Sample valves make | D62: To be specified | E62: Sodeco Valves
A63: 39 | B63: Sample valves material | D63: To be specified | E63: stainless steel
A64: 40 | B64: Manhole diameter | C64: mm | D64: To be specified | E64: 800
A65: 41 | B65: Quality of concrete | D65: To be specified | E65: specified during engineering
A66: 42 | B66: Coating of wall | D66: To be specified
A67: 43 | B67: Coating of bottom | D67: To be specified | E67: coating of concrete slab not required
A68: 44 | B68: Coating of top | D68: To be specified | E68: not applicable
A69: 45 | B69: By-pass facility to next process unit | D69: To be specified | E69: confirmed
A70: 46 | B70: Insulation | D70: To be specified | E70: not applicable
A71: 47 | B71: Insulation material | D71: To be specified | E71: not applicable
A72: 48 | B72: Insulation thickness | D72: To be specified | E72: not applicable
A73: 49 | B73: Cladding of insulated tank. | D73: To be specified | E73: not applicable
A76: =A73+1 -> 50 | B76: Recirculation pump (if applicable) | C76: pcs | E76: not applicable
A77: =A76+1 -> 51 | B77: Type | D77: To be specified | E77: not applicable
A78: =A77+1 -> 52 | B78: Capacity of pump | C78: m3/h | D78: To be specified | E78: not applicable
A79: 53 | B79: Pumping head | C79: bar | D79: To be specified | E79: not applicable
A80: 54 | B80: Pump Speed | C80: rpm | D80: To be specified | E80: not applicable
A81: 55 | B81: Size of motor | C81: kW | D81: To be specified | E81: not applicable
A82: 56 | B82: Frequency converter | D82: To be supplied | E82: not applicable
A83: 57 | B83: Impeller construction material | D83: To be specified | E83: not applicable
A84: 58 | B84: Pump house material | D84: To be specified | E84: not applicable
A85: 59 | B85: Lifting equipment | D85: To be specified | E85: not applicable
A87: =A85+1 -> 60 | B87: Surplus sludge pump | C87: pcs | E87: not applicable
A88: =A87+1 -> 61 | B88: Type | D88: To be specified | E88: not applicable
A89: =A88+1 -> 62 | B89: Capacity of pump | C89: m3/h | D89: To be specified | E89: not applicable
A90: 63 | B90: Pumping head | C90: bar | D90: To be specified | E90: not applicable
A91: 64 | B91: Pump Speed | C91: rpm | D91: To be specified | E91: not applicable
A92: 65 | B92: Size of motor | C92: kW | D92: To be specified | E92: not applicable
A93: 66 | B93: Frequency converter | D93: To be supplied | E93: not applicable
A94: 67 | B94: Impeller construction material | D94: To be specified | E94: not applicable
A95: 68 | B95: Pump house material | D95: To be specified | E95: not applicable
A96: 69 | B96: Lifting equipment | D96: To be specified | E96: not applicable
A98: =A96+1 -> 70 | B98: Agitators | E98: not applicable
A99: =A98+1 -> 71 | B99: Type | D99: To be specified | E99: not applicable
A100: =A99+1 -> 72 | B100: Material | D100: To be specified | E100: not applicable
A101: 73 | B101: Design of blades | D101: To be specified | E101: not applicable
A102: 74 | B102: Mount of agitator | D102: Top/side/bottom. To be specified | E102: not applicable
A103: 75 | B103: Diameter of agitator | C103: mm | D103: To be specified | E103: not applicable
A104: 76 | B104: Motor size for agitator | C104: kW | D104: To be specified | E104: not applicable
A105: 77 | B105: Frequency converter | D105: To be specified | E105: not applicable
A106: 78 | B106: Max. Power consumption | C106: W/m3 | D106: 3 W/m3. To be specified | E106: not applicable
A107: 79 | B107: Speed controlle range | C107: rpm | D107: To be specified | E107: not applicable
A108: 80 | B108: Maintenance | D108: To be specified | E108: not applicable
A110: =A108+1 -> 81 | B110: Aeration equipment
A111: =A110+1 -> 82 | B111: 1. Blower & submerged diffusor system
A112: =A111+1 -> 83 | B112: Air blower, numbers | C112: pcs | D112: To be specified | E112: 1 + 1 standby
A113: 84 | B113: Airblower, type and brand | D113: To be specified | E113: positive displacement blower, Aerzen
A114: 85 | B114: Air blower, capacity | C114: Nm3/h | D114: To be specified | E114: 600
A115: 86 | B115: Air blower, power | C115: kW | D115: To be specified | E115: 22
A116: 87 | B116: Air blower, VSD | D116: To be supplied | E116: not confirmed
A117: 88 | B117: Aerator diffusers, type and brand | D117: To be specified | E117: plate diffusers, Supratec
A118: 89 | B118: Aerator diffusers, material of pipes | D118: To be specified | E118: HDPE
A119: 90 | B119: Aerator diffusers, material of diffuser | D119: To be specified | E119: Glass reinforced PP body, perforated EPDM rubber membrane
A120: 91 | B120: Facility for maintenance of diffuser system | D120: To be specified | E120: not applicable
A121: 92 | B121: 2. Surface aerator system
A122: 93 | B122: Surface aerators, numbers | C122: pcs | D122: To be specified | E122: not applicable
A123: 94 | B123: Surface aerators, type and brand | D123: To be specified | E123: not applicable
A124: 95 | B124: Surface aerator, capacity | C124: m3/h | D124: To be specified | E124: not applicable
A125: 96 | B125: Surface aerator. Power | C125: kW | D125: To be specified | E125: not applicable
A126: 97 | B126: Surface aerator. VSD | D126: to be supplied | E126: not applicable
A127: 98 | B127: Facility for maintenance of aeration system | D127: To be specified | E127: not applicable
A129: =A127+1 -> 99 | B129: Settler equipment | E129: not applicable
A130: =A129+1 -> 100 | B130: Bottom scraber, material of steel and scraber | D130: To be specified | E130: not applicable
A131: =A130+1 -> 101 | B131: Overflow weirs, material | D131: To be specified | E131: not applicable
A132: 102 | B132: Floating sludge removal, surface scraber | D132: To be specified | E132: not applicable
A134: =A132+1 -> 103 | B134: Other Equipment
A135: =A134+1 -> 104 | B135: Overflow facility to next process unit | D135: To be specified | E135: not applicable
A136: =A135+1 -> 105 | B136: External ladder to tank top or common walkway for group of tanks | D136: To be specified | E136: not applicable
A138: =A136+1 -> 106 | B138: Aerobic unit feed pump (if applicable) | C138: pcs | E138: not applicable
A139: =A138+1 -> 107 | B139: Type | D139: To be specified | E139: not applicable
A140: =A139+1 -> 108 | B140: Capacity of pump | C140: m3/h | D140: To be specified | E140: not applicable
A141: 109 | B141: Pumping head | C141: bar | D141: To be specified | E141: not applicable
A142: 110 | B142: Pump Speed | C142: rpm | D142: To be specified | E142: not applicable
A143: 111 | B143: Size of motor | C143: kW | D143: To be specified | E143: not applicable
A144: 112 | B144: Frequency converter | D144: To be supplied | E144: not applicable
A145: 113 | B145: Impeller construction material | D145: To be specified | E145: not applicable
A146: 114 | B146: Pump house material | D146: To be specified | E146: not applicable
A147: =A146+1 -> 115 | B147: Lifting equipment | D147: To be specified | E147: not applicable
A149: =A147+1 -> 116 | B149: Surplus sludge pump (if applicable) | C149: pcs | E149: not applicable
A150: =A149+1 -> 117 | B150: Type | D150: To be specified | E150: not applicable
A151: =A150+1 -> 118 | B151: Capacity of pump | C151: m3/h | D151: To be specified | E151: not applicable
A152: 119 | B152: Pumping head | C152: bar | D152: To be specified | E152: not applicable
A153: 120 | B153: Pump Speed | C153: rpm | D153: To be specified | E153: not applicable
A154: 121 | B154: Size of motor | C154: kW | D154: To be specified | E154: not applicable
A155: 122 | B155: Frequency converter | D155: To be supplied | E155: not applicable
A156: 123 | B156: Impeller construction material | D156: To be specified | E156: not applicable
A157: 124 | B157: Pump house material | D157: To be specified | E157: not applicable
A158: =A157+1 -> 125 | B158: Lifting equipment | D158: To be specified | E158: not applicable
A160: =A158+1 -> 126 | B160: Piping
A161: =A160+1 -> 127 | B161: Piping material - Waste Water | D161: To be specified | E161: HDPE
A162: =A161+1 -> 128 | B162: Piping material - Air | D162: To be specified | E162: Stainless steel AISI 304
A164: =A162+1 -> 129 | B164: Instrumentation
A165: =A164+1 -> 130 | B165: Level switch | D165: To be supplied | E165: not confirmed
A166: =A165+1 -> 131 | B166: pH transmitter | D166: To be supplied | E166: not confirmed
A167: 132 | B167: Temperature transmitter | D167: To be supplied | E167: not confirmed
A168: 133 | B168: Inline O2 control | D168: To be supplied | E168: not confirmed
A169: 134 | B169: Flow measurement RAS | D169: To be supplied | E169: not confirmed
A170: 135 | B170: Flow measurement WAS | D170: To be supplied | E170: not confirmed
A171: 136 | B171: Inline MLSS, RAS&WAS concentration (optional) | D171: To be specified | E171: not confirmed
A172: 137 | B172: Inline Nitorgen control (optional) | D172: To be specified | E172: not confirmed
A173: 138 | B173: Inline Phosphor control (optional) | D173: To be specified | E173: not confirmed
A174: 139 | B174: Inline COD control (optional) | D174: To be specified | E174: not confirmed
A175: 140 | B175: Inlne TSS control (optional) | D175: To be supplied | E175: not confirmed
A177: =A175+1 -> 141 | B177: Final Polishing ( If applicable) | E177: not applicable
A178: =A177+1 -> 142 | B178: Final polishing equipment type | C178: type | D178: To be specified | E178: not applicable
A179: =A178+1 -> 143 | B179: Final polishing equipment cpacity | C179: m3/h | E179: not applicable
A180: 144 | B180: Final polishing equipment cpacity solids feed | C180: mg/l | E180: not applicable
A181: 145 | B181: Final polishing equipment cpacity reject rate | C181: m3/h | E181: not applicable
A182: 146 | B182: Final polishing equipment outlet performance on solids | C182: mg/l | D182: To be specified | E182: not applicable

Sheet Outlet
A1: Outlet Station | F1: Front Page
A2: No. | B2: Description | C2: Units | D2: AB InBev | E2: Contractor | F2: Notes | G2: ABInBev Notes
A3: 1 | B3: Concrete outlet tank
A4: =A3+1 -> 2 | B4: Shape of tank. - Circular | D4: To be specified | E4: not applicable
A5: =A4+1 -> 3 | B5: Minimum hydraulic retention Time | D5: To be specified | E5: not applicable
A6: 4 | B6: Dimension of tank | C6: L/B/H or D/H | D6: To be specified | E6: not applicable
A7: 5 | B7: Gross volume | C7: m3 | D7: To be specified | E7: not applicable
A8: 6 | B8: Thickness of tank wall | C8: mm | D8: To be specified | E8: not applicable
A9: 7 | B9: Quality of concrete | D9: To be specified | E9: not applicable
A10: 8 | B10: Coating of wall | D10: To be specified | E10: not applicable
A11: 9 | B11: Coating of bottom | D11: To be specified | E11: not applicable
A13: =A11+1 -> 10 | B13: Piping
A14: =A13+1 -> 11 | B14: Piping material - Waste Water | D14: To be specified | E14: HDPE
A16: =A14+1 -> 12 | B16: Instrumentation
A17: =A16+1 -> 13 | B17: Level switch | D17: To be supplied | E17: not confirmed
A18: =A17+1 -> 14 | B18: Flow transmitter | D18: To be supplied | E18: confirmed
A19: 15 | B19: pH Transmitter | D19: To be supplied | E19: confirmed
A20: 16 | B20: Temperature transmitter | D20: To be supplied | E20: confirmed, via pH measurement
A21: 17 | B21: Redox transmitter | D21: To be supplied | E21: not confirmed
A22: 18 | B22: Conductivity transmitter | D22: To be supplied | E22: not confirmed
A23: =A22+1 -> 19 | B23: Inline Nitorgen control (optional) | D23: To be specified | E23: not applicable
A24: 20 | B24: Inline Phosphor control (optional) | D24: To be specified | E24: not applicable
A25: 21 | B25: Inline COD control (optional) | D25: To be specified | E25: not applicable
A26: 22 | B26: Inlne TSS control (optional) | D26: To be specified | E26: confirmed
A27: 23 | B27: Automatic sampler | D27: To be specified | E27: not confirmed

Sheet Odour Control
A1: Odour Control | F1: Front Page
A2: No. | B2: Description | C2: Units | D2: AB InBev | E2: Contractor | F2: Notes | G2: ABInBev Notes
A3: 1 | B3: Off gas suction sites
A4: =A3+1 -> 2 | B4: Inlet tank | C4: m3/h | D4: To be specified | E4: 0
A5: =A4+1 -> 3 | B5: Equalization tank | C5: m3/h | D5: To be specified | E5: 260
A6: 4 | B6: Calamity tank | C6: m3/h | D6: To be specified | E6: 180
A7: 5 | B7: Anaerobic reactor(s) | C7: m3/h | D7: To be specified | E7: 140
A8: 6 | B8: Sludge storage tank | C8: m3/h | D8: To be specified | E8: not applicable
A9: 7 | B9: Sludge dewatering facility | C9: m3/h | D9: To be specified | E9: not applicable
A10: 8 | B10: Other facilities | C10: m3/h | D10: To be specified | E10: 640 (post aeration)
A11: 9 | B11: Total Air flow to treatment | C11: m3/h | D11: To be specified | E11: =E5+E6+E7+640 -> 1220
A13: =A11+1 -> 10 | B13: Unit process specification
A14: =A13+1 -> 11 | B14: Separate off gas treatment
A15: =A14+1 -> 12 | B15: General process discription | D15: To be specified | E15: not applicable
A17: =A15+1 -> 13 | B17: Combined off gas treatment
A18: 14 | B18: General process discription | D18: To be specified | E18: biofilter on vent air and outlet post aeration tank
A20: =A18+1 -> 15 | B20: Concrete platform foundation for equipment [Note: If required]
A21: 16 | B21: Dimension of platform | C21: L x W | D21: To be specified | E21: ca. 7,8 x 2,65 m + plinth for fan
A22: 17 | B22: Quality of concrete | D22: To be specified | E22: specified during engineering
A23: 18 | B23: Coating | D23: To be specified | E23: not applicable
A24: 19 | B24: Other constructions | D24: To be specified | E24: not applicable
A25: 20 | B25: Application of construction | D25: To be specified | E25: not applicable
A26: 21 | B26: Dimension of construction | D26: To be specified | E26: not applicable
A27: 22 | B27: Quality of concrete | D27: To be specified | E27: not applicable
A28: 23 | B28: Coating | D28: To be specified | E28: not applicable
A30: =A28+1 -> 24 | B30: Off gas blowers
A31: =A30+1 -> 25 | B31: Design capacity of flow | C31: m3/h | D31: To be specified | E31: 1500
A32: =A31+1 -> 26 | B32: Type of pumps | D32: To be specified | E32: radial fan
A33: 27 | B33: Number of pumps | D33: To be specified | E33: 1
A34: 28 | B34: Capacity of pump | C34: m3/h | D34: To be specified | E34: 1500
A35: 29 | B35: Pumping head | C35: bar | D35: To be specified | E35: 0.025
A36: 30 | B36: Pump speed | C36: rpm | D36: To be specified | E36: 2900
A37: 31 | B37: Size of motor | C37: kW | D37: To be specified | E37: 3
A38: 32 | B38: Frequency converter | D38: To be supplied | E38: confirmed
A39: 33 | B39: Impeller construction material | D39: To be specified | E39: PPs/PP-FR
A40: 34 | B40: Pump house material | D40: To be specified | E40: Pes/PE-FR
A41: 35 | B41: Installation position | D41: To be specified | E41: next to biofilter
A43: =A41+1 -> 36 | B43: Injection system - off gas to aero tank prefeered
A44: =A43+1 -> 37 | B44: Aeration system. Submerged or injector | D44: To be specified | E44: not applicable
A45: =A44+1 -> 38 | B45: Aerator diffusers, type and brand | D45: To be specified | E45: not applicable
A46: 39 | B46: Aerator diffusers, material of pipes | D46: To be specified | E46: not applicable
A47: 40 | B47: Aerator diffusers, material of diffuser | D47: To be specified | E47: not applicable
A48: 41 | B48: Facility for maintenance of diffuser system | D48: To be specified | E48: not applicable
A49: 42 | B49: Injector, type and brand | D49: To be specified | E49: not applicable
A51: =A49+1 -> 43 | B51: Alternative odor processing unit
A52: =A51+1 -> 44 | B52: Type of odor processing | D52: To be specified (biological, chemical, active carbon, combined) | E52: biofilter with moistening chamber
A53: =A52+1 -> 45 | B53: Process units | C53: pcs | D53: To be specified | E53: 1
A54: 46 | B54: Units materials: Process tank | D54: To be specified | E54: HDPE
A55: 47 | B55: Process unit dimensions | C55: L/B/H or D/H | D55: To be specified | E55: 6,7 m/2,2 m/1,6 m
A56: 48 | B56: Internal media material [Note: If any] | D56: To be specified | E56: wood chips, limestone powder
A57: 49 | B57: Active carbon ammount ( if applicable) | C57: kg | D57: To be specified | E57: not applicable
A58: 50 | B58: Active carbon regeneration ( if applicable) | C58: times/year | D58: To be specified | E58: not applicable
A59: 51 | B59: Active carbon consumption ( if applicable) | C59: kg/year | D59: To be specified | E59: not applicable
A60: 52 | B60: Causitic dosage (if applicable) | C60: m3/day | D60: To be specified | E60: not applicable
A61: 53 | B61: Causitic concentration (if applicable) | C61: % | D61: To be specified | E61: not applicable
A62: 54 | B62: Caustic regeneration unit (if applicable) | D62: To be specified | E62: not applicable
A63: 55 | B63: Bio media incubator(if applicable) | D63: To be specified | E63: not applicable
A64: 56 | B64: Bio media seed (if applicable) | C64: unit/year | D64: To be specified | E64: not applicable
A65: 57 | B65: Nutrient dosage (if applicable) | C65: unit/year | D65: To be specified | E65: not applicable
A66: 58 | B66: Water usage | C66: m3/h | D66: To be specified ( recommended final tretaed effluent to be used) | E66: depending on water evaporation rate
A68: =A66+1 -> 59 | B68: Processing unit recirculation pump (if applicable) | C68: pcs
A69: =A68+1 -> 60 | B69: Type | D69: To be specified | E69: vertical in-line low pressure pump
A70: =A69+1 -> 61 | B70: Capacity of pump | C70: m3/h | D70: To be specified | E70: 8.5
A71: 62 | B71: Pumping head | C71: bar | D71: To be specified | E71: 1
A72: 63 | B72: Pump Speed | C72: rpm | D72: To be specified | E72: 2900
A73: 64 | B73: Size of motor | C73: kW | D73: To be specified | E73: 1.5
A74: 65 | B74: Frequency converter | D74: To be supplied | E74: not confirmed
A75: 66 | B75: Impeller construction material | D75: To be specified | E75: stainless steel
A76: 67 | B76: Pump house material | D76: To be specified | E76: cast iron

Sheet Laboratory equipment
A1: Laboratory Equipment & Furnitures | F1: Front Page
A2: No. | B2: Description | C2: Units | D2: AB InBev | E2: Contractor | F2: Notes | G2: ABInBev Notes
A3: 1 | B3: Laboratory equipment
A4: =A3+1 -> 2 | B4: Portable dissolved oxygen meter (DO), 2 spare electrodes, cable, buffer solution and accessories (robust quality for field-use); | D4: To be specified | E4: Not required for proposed installation
A5: =A4+1 -> 3 | B5: Minimum hydraulic retention Time | D5: To be specified | E5: Not required for proposed installation
A6: 4 | B6: Utility oven with temperature range 30 - 200˚ C, volume 28 litres; | D6: To be specified | E6: Confirmed
A7: 5 | B7: Analytical balance, weighing capacity 80 gram, readability 0.0001 gram; | D7: To be specified | E7: Confirmed
A8: 6 | B8: Imhoff cone (1 litre) with stand (5); | D8: To be specified | E8: Confirmed
A9: 7 | B9: Desiccators for 12 evaporating dishes (1); | D9: To be specified | E9: Confirmed
A10: 8 | B10: Buchner funnel (2) with 2 boxes S&S glass fibre filters | D10: To be specified | E10: Confirmed; the full set-up with a portable vacuum pump and erlenmeyer flask with side connection.
A11: 9 | B11: Timer with audible alarm; | D11: To be specified | E11: Not required, timer included in spectrophotometer.
A12: 10 | B12: Latex gloves, 100 pieces per package (5); | D12: To be specified | E12: Confirmed
A13: 11 | B13: Set of safety glasses (6); | D13: To be specified | E13: Confirmed
A14: 12 | B14: Laboratory coats (6); | D14: To be specified | E14: Confirmed
A15: 13 | B15: Crucible tongs (3); | D15: To be specified | E15: Confirmed
A16: 14 | B16: Stand including clamps (3); | D16: To be specified | E16: Not required for proposed installation
A17: 15 | B17: Vial / tube rack; | D17: To be specified | E17: Confirmed
A18: 16 | B18: Rubber tubing (20 meters); | D18: To be specified | E18: Confirmed
A19: 17 | B19: Magnetic stirrers (6); | D19: To be specified | E19: Not required for proposed installation
A20: 18 | B20: Glass tubes 6x60, 6x200 mm (6 of each); | D20: To be specified | E20: Not required for proposed installation
A21: 19 | B21: Grab samplers (2); | D21: To be specified | E21: Confirmed
A22: 20 | B22: Water bath (1); | D22: To be specified | E22: Not required for proposed installation
A23: 21 | B23: Erlenmeyer flasks with fitting rubber stopper, 1,000 and 500 ml (12 of each); | D23: To be specified | E23: 3 of each
A24: 22 | B24: Evaporating dishes 50 ml (12); | D24: To be specified | E24: Confirmed
A25: 23 | B25: Crucibles 50 ml (12); | D25: To be specified | E25: Confirmed
A26: 24 | B26: 100 ml separator funnel (12); | D26: To be specified | E26: Not required for proposed installation
A27: 25 | B27: Weighing dishes 100 ml (12); | D27: To be specified | E27: Confirmed
A28: 26 | B28: Beaker glasses 50 ml (10 of each) | D28: To be specified | E28: Confirmed
A29: 27 | B29: Spectrophotometer brand Hach-Lange, or equivalent; | D29: To be specified | E29: Confirmed
A30: 28 | B30: COD, T-N and T-P measurement using prepared vials (eg. Hach-Lange, 600 vials for COD, T-N and T-P), in applicable ranges, including all accessories and reagents; | D30: To be specified | E30: Confirmed
A31: 29 | B31: Heating / destruction block for Hach-Lange vials. | D31: To be specified | E31: Confirmed
A32: 30 | B32: Portable pH/temperature meter, 2 spare electrodes, including laboratory docking station, electrode stand, cable, buffer solution (1 litre each of pH 4 and 7 and 10) and accessories (robust quality for combined use in laboratory and field); | D32: To be specified | E32: Confirmed
A33: 31 | B33: VFA/TIC titrator. E.g. Hach-Lange | D33: To be specified | E33: VFA analysis is done using colorimetry.
A34: 32 | B34: Volumetric pipettes 1, 5, 10 and 25 ml (6 of each); | D34: To be specified | E34: Not required for proposed installation
A35: 33 | B35: Measuring pipettes 2 and 10 ml (6 of each); | D35: To be specified | E35: Confirmed
A36: 34 | B36: Pipetting balloons (2); | D36: To be specified | E36: Confirmed
A37: 35 | B37: Beaker glasses 250 and 100 ml (10 of each); | D37: To be specified | E37: Confirmed
A38: 36 | B38: Graduated metric cylinder, 1,000, 500, 250, 100 and 50 ml (2 of each); | D38: To be specified | E38: Confirmed
A39: 37 | B39: Funnel 125 and 75 mm, PP (5 of each); | D39: To be specified | E39: Confirmed
A40: 38 | B40: Automatic pipette 1-5 ml, including 1,000 disposable tips (1). | D40: To be specified | E40: Confirmed; 2 measureing sizes
A41: 39 | B41: All included reagents, test tubes or other consumables sufficient for a half year of operation should be supplied. | D41: To be specified | E41: Confirmed
A43: =A41+1 -> 40 | B43: Furniture | D43: To be specified
A44: =A43+1 -> 41 | B44: Laboratory workbench with sink and tap, cupboards; | D44: To be specified | E44: Confirmed
A45: =A44+1 -> 42 | B45: Complete fume cupboard with exhaust hood, sink and tap; | D45: To be specified | E45: Confirmed

Sheet Civil work & Buildings
A1: Civil Work & Buildings | F1: Front Page
A2: No. | B2: Description | C2: Units | D2: AB InBev | E2: Contractor | F2: Notes | G2: ABInBev Notes
A3: 1 | B3: Technical buildings
A4: =A3+1 -> 2 | B4: Design of technical facilities | D4: 1 technical building/facilities scattered. To be specified | E4: supply of civil guidelines only
B5: Minimum hydraulic retention Time | E5: not applicable
A6: =A4+1 -> 3 | B6: Constructions
A7: =A6+1 -> 4 | B7: Construction Material | D7: To be specified | E7: to be discussed
A9: =A7+1 -> 5 | B9: Facilities and place
A10: =A9+1 -> 6 | B10: Room for Sludge Dewatering Unit | C10: m2 | D10: Application, facilities and area. To be specified | E10: not applicable
A11: =A10+1 -> 7 | B11: Electrical room | C11: m2 | D11: Application, facilities and area. To be specified | E11: ca. 20
A12: 8 | B12: Room for installation of RWS | C12: m2 | D12: Application, facilities and area. To be specified | E12: to be clarified
A13: 9 | B13: Operator room - Process controle | C13: m2 | D13: Application, facilities and area. To be specified | E13: ca. 20
A14: 10 | B14: Room for chemical storage | C14: m2 | D14: Application, facilities and area. To be specified | E14: ca. 35
A15: 11 | B15: Laboratory | C15: m2 | D15: Application, facilities and area. To be specified | E15: ca. 20
A16: 12 | B16: Toilets | C16: m2 | D16: Application, facilities and area. To be specified | E16: can be included if wanted
A17: 13 | B17: Office | C17: m2 | D17: Application, facilities and area. To be specified | E17: can be included if wanted
A18: 14 | B18: Room for containers (dewatered sludge) | C18: m2 | D18: Application, facilities and area. To be specified | E18: not applicable
A19: 15 | B19: Work shop | C19: m2 | D19: Application, facilities and area. To be specified | E19: can be included if wanted
A20: 16 | B20: Room 1 | C20: m2 | D20: Application, facilities and area. To be specified | E20: can be included if wanted
A21: 17 | B21: Room 2 | C21: m2 | D21: Application, facilities and area. To be specified | E21: can be included if wanted
A22: 18 | B22: Air Condition | D22: Application, facilities and area. To be specified | E22: by civil contractor
A24: =A22+1 -> 19 | B24: Piping
A25: =A24+1 -> 20 | B25: Piping material - Water | D25: To be specified | E25: HDPE
A26: =A25+1 -> 21 | B26: Piping material - Ventilation air | D26: To be specified | E26: by civil contractor
A28: =A26+1 -> 22 | B28: OTHER CIVIL WORK
A29: =A28+1 -> 23 | B29: Internal roads | D29: To be specified | E29: by civil contractor
A30: =A29+1 -> 24 | B30: Landscaping | D30: To be specified | E30: by civil contractor
A31: 25 | B31: Fence boundering the site | D31: To be specified | E31: by civil contractor
A32: 26 | B32: Gate(s) | D32: To be specified | E32: by civil contractor

Sheet Piping and Insulation
A1: Piping and Insulation | F1: Front Page
A2: No. | B2: Description | C2: Units | D2: AB InBev | E2: Contractor | F2: Notes
A3: 1 | B3: All interconnecting pipe works including utility | D3: To be supplied | E3: confirmed, as per battery limits specified in our proposal
A4: 2 | B4: All vent piping to free air. | D4: To be supplied | E4: confirmed
A5: 3 | B5: Minimum hydraulic retention Time | D5: To be supplied | E5: to be clarified
A6: 4 | B6: Insulation of piping, according to specification. | D6: To be supplied | E6: to be discussed
A7: 5 | B7: Insulation of all equipment, Valves, Flanges, In-line equipment, etc. according to specification. | D7: To be supplied | E7: to be discussed
A9: 6 | B9: Piping
A10: 7 | B10: Piping material according to specification | D10: To be supplied | E10: confirmed, as per materials and battery limits specified in our proposal
A12: 8 | B12: Insulation
A13: 9 | B13: Insulation material for hot piping | D13: Mineral Wool | E13: not applicable
A14: 10 | B14: Insulation material for cold piping | D14: PUR [Note: or] PIR [Note: or] Foamglas [Note: or] Armaflex | E14: mineral wool + aluminum cladding

Sheet Pipe Bridges and Support
A1: Pipe Bridges and Support | G1: Front Page
A2: No. | B2: Component | D2: Required Makes | E2: Type | F2: Contractor | G2: Notes
A3: 1 | B3: All pipe bridges, inside the working areas | D3: To be supplied | F3: not applicable
A4: 2 | B4: All supports for piping (individual supports and entire structure), inside the working areas | D4: To be supplied | F4: confirmed
B5: Minimum hydraulic retention Time
A6: 3 | B6: Pipe Bridge, main | D6: Section deleted if supplied by others | F6: not applicable
A7: 4 | B7: Constructions Material | D7: Galvanized mild steel [Note: or] Stainless Steel | F7: not applicable
A8: 5 | B8: Constructions Material, piping support | D8: Stainless Steel | F8: not applicable
A9: 6 | B9: Type | D9: To be specified | F9: not applicable
A10: 7 | B10: Supported by | D10: Floor [Note: or] Structures [Note: or] Building | F10: not applicable
A11: 8 | B11: Free space for future piping | C11: % | D11: 25 | F11: not applicable
A12: 9 | B12: Free space underneath pipe bridge | C12: mm | D12: 3000 [Note: or, if outside] 4500 | F12: not applicable
A13: 10 | B13: Distance between two pipe deck levels | C13: mm | D13: 1000 - 1200 | F13: not applicable
A15: 11 | B15: Local Pipe Bridges | F15: not applicable
A16: 12 | B16: Constructions Material | D16: Stainless Steel [Note: or] Galvanized mild steel | F16: not applicable
A17: 13 | B17: Type | D17: To be specified | F17: not applicable
A18: 14 | B18: Supported by | D18: Floor [Note: or] Structures [Note: or] Building | F18: not applicable
A19: 15 | B19: Free space for future piping | C19: % | D19: 25 | F19: not applicable
A20: 16 | B20: Free space underneath pipe bridge | C20: mm | D20: 3000 [Note: or, if outside] 4500 | F20: not applicable
A21: 17 | B21: Distance between two pipe deck levels | C21: mm | D21: 1000 - 1200 | F21: not applicable
A23: 18 | B23: Local Pipe support
A24: 19 | B24: Constructions Material | D24: Stainless Steel [Note: or] Galvanized mild steel | F24: carbon steel and partially in stainless steel (clamps)
A25: 20 | B25: Constructions Material, piping support | D25: Stainless Steel | F25: carbon steel and partially in stainless steel (clamps)
A26: 21 | B26: Type | D26: To be specified | F26: specified during engineering
A27: 22 | B27: Supported by | D27: Floor [Note: or] Structures [Note: or] Building | F27: confirmed
A28: 23 | B28: Free space underneath pipe support | C28: mm | D28: To be specified | F28: specified during engineering

Sheet Structures and Platforms
A1: Structures and Platforms | F1: Front Page
A2: No. | B2: Description | C2: Units | D2: AB InBev | E2: Contractor | F2: Notes
A3: 1 | B3: Constructions, structures, platforms and stairs for support of operational and maintenance access, for all new plants. | D3: To be supplied | E3: confirmed
A5: =A3+1 -> 2 | B5: Minimum hydraulic retention Time | D5: To be specified | E5: to be clarified
A6: =A5+1 -> 3 | B6: Constructions Material, Structure | D6: Hot-dip galvanized steel | E6: confirmed
A7: =A6+1 -> 4 | B7: Constructions Material, Platform | D7: Hot-dip galvanized steel | E7: confirmed
A8: 5 | B8: Platform, Type | D8: To be specified | E8: to be defined during engineering, depending on application
A9: 6 | B9: Platform, load capacity | C9: kg/m2 | D9: To be specified | E9: to be defined during engineering, depending on application
A10: 7 | B10: Constructions Material, Stairs | D10: Hot-dip galvanized steel | E10: confirmed
A11: 8 | B11: Stairs, Type | D11: To be specified | E11: cage ladders, optional helical stairs for anaerobic reactor
A12: 9 | B12: Constructions Material, Caged Ladders | D12: Hot-dip galvanized steel | E12: confirmed
A13: 10 | B13: Free space underneath Platform | C13: mm | D13: To be specified | E13: to be defined during engineering, depending on application
A15: =+A13+1 -> 11 | B15: Structure and Platform No. | D15: To be specified
A16: =+A15+1 -> 12 | B16: Constructions Material, Structure | D16: Hot-dip galvanized steel | E16: confirmed
A17: =+A16+1 -> 13 | B17: Constructions Material, Platform | D17: Hot-dip galvanized steel | E17: confirmed
A18: =+A17+1 -> 14 | B18: Platform, Type | D18: To be specified | E18: to be defined during engineering, depending on application
A19: 15 | B19: Platform, load capacity | C19: kg/m2 | D19: To be specified | E19: to be defined during engineering, depending on application
A20: 16 | B20: Constructions Material, Stairs | D20: Hot-dip galvanized steel | E20: confirmed
A21: 17 | B21: Stairs, Type | D21: To be specified | E21: cage ladders, optional helical stairs for anaerobic reactor
A22: 18 | B22: Constructions Material, Caged Ladders | D22: Hot-dip galvanized steel | E22: confirmed
A23: 19 | B23: Free space underneath Platform | C23: mm | D23: To be specified | E23: to be defined during engineering, depending on application

Sheet Other Mechanical Works
A1: Other Mechanical Works | F1: Front Page
A2: No. | B2: Description | C2: Units | D2: AB InBev | E2: Contractor | F2: Notes
A3: 1 | B3: Hoists and/or devices for maintenance or replacement of motors, pumps and other equipment, supplied under this contract. | D3: To be supplied | E3: confirmed
A4: 2 | B4: Special tools to be included required for operation and maintenance, of equipment supplied under this contract. | D4: To be supplied | E4: confirmed
A5: 3 | B5: Minimum hydraulic retention Time | D5: To be supplied | E5: not applicable
A6: 4 | B6: Numbering of pipes and equipment according to the AB InBev’s standard, of equipment supplied under this contract. | D6: To be supplied | E6: confirmed
A7: 5 | B7: Marking of pipes and equipment according to the AB InBev’s standard. | D7: To be supplied | E7: confirmed
A8: 6 | B8: Initial and first charge of oil, special chemicals, etc, of equipment supplied under this contract. | D8: To be supplied | E8: confirmed
A9: 7 | B9: Weather protection of equipment in case of outdoor installations, of equipment supplied under this contract. | D9: To be supplied | E9: weather protection sheds by civil contractor
A10: 8 | B10: All work and items required to secure tank and equipment support to the floor or support structure, of equipment supplied under this contract. | D10: To be supplied | E10: confirmed, except if grouting is required, to be done by civil contractor
A11: 9 | B11: Heat tracing where necessary to secure outdoor piping against freezing, of equipment supplied under this contract. | D11: To be supplied | E11: confirmed
A12: 10 | B12: The Contractor to include any temporary arrangements required allowing the production to continue during the erection, testing and commissioning, of equipment supplied under this contract. | D12: To be supplied | E12: confirmed

Sheet Automation
A1: Automation | F1: Front Page
A2: No. | B2: Description | C2: Unit / Criteria | D2: AB InBev | E2: Contractor | F2: Notes
A3: GENERAL CONTROL SYSTEM SPECIFICATIONS
A4: 1 | B4: Process Control System, Make & Type | D4: Wonderware System Platform | E4: Siemens WinCC Professional v15.1
A5: =A4+1 -> 2 | B5: Minimum hydraulic retention Time | C5: Yes/No | D5: To be specified | E5: to be clarified
A6: 3 | B6: Data Storage online/archive | C6: Years | D6: 1/5 | E6: confirmed
A7: 4 | B7: System availability | C7: % | D7: 99.9 | E7: confirmed
A8: 5 | B8: Language - operator interface (HMI) | D8: English | E8: confirmed
A9: 6 | B9: Functional Requirements:
A10: 7 | B10: Functional Structure | C10: Yes/No | D10: To be specified | E10: Yes
A11: 8 | B11: Screen Pictures | C11: Yes/No | D11: To be specified | E11: Yes
A12: 9 | B12: Recipe Management | C12: Yes/No | D12: To be specified | E12: No
A13: 10 | B13: Batch Management | C13: Yes/No | D13: To be specified | E13: No
A14: 11 | B14: Route Management | C14: Yes/No | D14: To be specified | E14: Yes
A15: 12 | B15: Batch Scheduling | C15: Yes/No | D15: To be specified | E15: No
A16: 13 | B16: Trend Curves | C16: Yes/No | D16: To be specified | E16: Yes
A17: 14 | B17: Alarm Handling | C17: Yes/No | D17: To be specified | E17: Yes
A18: 15 | B18: Logging of data to SQL database | C18: Yes/No | D18: To be specified | E18: Yes
A19: 16 | B19: Access Control | C19: Yes/No | D19: To be specified | E19: Yes
A20: 17 | B20: Control System Status Overview | C20: Yes/No | D20: To be specified | E20: Yes
A21: 18 | B21: Operator interface to MES functions | C21: Yes/No | D21: To be specified | E21: to be checked, depends on how the connection should be done
A22: 19 | B22: Web Browser | C22: Yes/No | D22: To be specified | E22: No
A23: 20 | B23: Video Mode | C23: Yes/No | D23: To be specified | E23: No
A24: 21 | B24: MES Functionality: | D24: To be specified
A25: 22 | B25: Interface to MES System | C25: Yes/No | D25: To be specified | E25: to be checked, depends on how the connection should be done
A26: 23 | B26: Interface to ERP System | C26: Yes/No | D26: To be specified | E26: to be checked, depends on how the connection should be done
A27: 24 | B27: Recipe Management | C27: Yes/No | D27: To be specified | E27: No
A28: 25 | B28: Production Scheduling | C28: Yes/No | D28: To be specified | E28: No
A29: 26 | B29: Batch Reporting | C29: Yes/No | D29: To be specified | E29: No
A30: 27 | B30: Inventory Survey | C30: Yes/No | D30: To be specified | E30: No
A31: 28 | B31: Production Reports | C31: Yes/No | D31: To be specified | E31: No
A32: 29 | B32: Batch / Product Tracking/Tracing | C32: Yes/No | D32: To be specified | E32: No
A33: 30 | B33: Alarm statistics | C33: Yes/No | D33: To be specified | E33: Yes
A34: 31 | B34: Report Generator | C34: Yes/No | D34: To be specified | E34: No
A35: 32 | B35: Key Operating Parameters, KOP | C35: Yes/No | D35: To be specified | E35: No
A36: 33 | B36: Key Performance Parameters, KPI | C36: Yes/No | D36: To be specified | E36: No
A37: =A36+1 -> 34 | B37: Utility Reports | C37: Yes/No | D37: To be specified | E37: No
A38: 35 | B38: Energy Management System | C38: Yes/No | D38: To be specified | E38: No
A39: 36 | B39: Maintenance Management System | C39: Yes/No | D39: To be specified | E39: No
A40: 37 | B40: Laboratory Information Management System (LIMS) | C40: Yes/No | D40: To be specified | E40: No
A42: SPECIFIC CONTROL SYSTEM SPECIFICATIONS - SCADA SYSTEM
A43: =A40+1 -> 38 | B43: SCADA system software, incl. Licenses | C43: no. | D43: 1 | E43: confirmed
A44: =A43+1 -> 39 | B44: SCADA application software for Refrigeration Plant | C44: no. | D44: 1 | E44: not applicable
A45: =A44+1 -> 40 | B45: Requirement specification of data handling | C45: no. | D45: 1 | E45: confirmed
A46: =A45+1 -> 41 | B46: MES functionality application software for Refrigeration Plant | C46: no. | D46: 1 | E46: to be checked, depends on how the connection should be done
A47: =A46+1 -> 42 | B47: Application software for interface to MES & ERP system | C47: no. | D47: 1 | E47: to be checked, depends on how the connection should be done
A48: 43 | B48: SCADA Operator Work Stations for Refrigeration Plant | C48: no. | D48: 3 | E48: not applicable
A49: =A48+1 -> 44 | B49: Specifications for operator workstations: | C49: no. | D49: 2 screens, each 24" | E49: confirmed
A50: 45 | B50: Big supervisory mimic screens, covering Refrigeration Plant | C50: no. | D50: 2 | E50: not applicable
A51: =A50+1 -> 46 | B51: Specifications for big supervisory screens: | D51: 40" | E51: not applicable
A52: 47 | B52: I/O SCADA Servers | C52: no. | D52: 1 | E52: confirmed
A53: 48 | B53: Specifications for I/O Servers | D53: Redundant
A54: 49 | B54: SQL Server | C54: no. | D54: 1
A55: 50 | B55: Specifications for SQL Server
A56: 51 | B56: Back-up Server | C56: no. | D56: 1 | E56: not confirmed
A57: 52 | B57: MES Server | C57: no. | D57: 1 | E57: not confirmed
A58: 53 | B58: Specifications for MES Server
A59: 54 | B59: Engineering Station
A60: 55 | B60: Specifications for engineering station
A61: 56 | B61: Printers | C61: no. | D61: 2 | E61: 1
A62: 57 | B62: Specifications for printers | D62: Laser printer Colour printer | E62: confirmed
A63: 58 | B63: VPN connection | C63: no. | D63: 1 | E63: by client
A64: 59 | B64: Specification for VPN connection
A66: SPECIFIC CONTROL SYSTEM SPECIFICATIONS - PLC SYSTEM
A67: =A64+1 -> 60 | B67: PLC system software, incl. licenses | C67: No. | D67: 1 | E67: confirmed
A68: =A67+1 -> 61 | B68: PLC application software for Refrigeration Plant | C68: No. | D68: 1 | E68: not applicable
A69: 62 | B69: PLC application software for Refrigeration Plant | C69: No. | D69: 1 | E69: not applicable
A70: 63 | B70: PLC for Refrigration Plant | C70: No. | D70: 1 | E70: not applicable
A71: 64 | B71: Remote I/O, incl. panels for Refrigeration Plant | C71: No. | E71: not applicable
A72: 65 | B72: Specifications for PLC | D72: Make: Siemens/Rockwell Type: SIMATIC S7-400 ControlLogix | E72: Siemens SIMATIC S7-400
A73: 66 | B73: Specifications for Remote I/O | D73: Make: Siemens/Rockwell Type: ET200 ControlLogix | E73: Siemens ET200 | F73: In dwg format files
A75: =#REF!+1 -> 
A76: =A75+1 -> 
A77: =A76+1 -> 

Sheet Electrical Installations
A1: Electrical Installations | F1: Front Page
A2: No. | B2: Description | C2: Unit / Criteria | D2: AB InBev | E2: Contractor | F2: Notes
A3: SPECIFICATION OF ELECTRICAL INSTALLATIONS
A4: 1 | B4: Supply and Erection of Motor Control Centres (MCCs); including remote PLC interface modules | C4: 1 | D4: To be supplied | E4: confirmed
A5: =A4+1 -> 2 | B5: Minimum hydraulic retention Time | C5: 1 | D5: To be supplied | E5: to be clarified
A6: 3 | B6: Supply and installation of frequency converters | C6: 1 | D6: To be supplied | E6: confirmed
A7: 4 | B7: Supply and Installation of isolator switches for electrical motors | C7: 1 | D7: To be supplied | E7: confirmed
A8: 5 | B8: Supply and installation of power cables | C8: 1 | D8: To be supplied | E8: confirmed, power supply and connection to local control panel by client
A9: 6 | B9: Supply and installation of control and instrumentation cables | C9: 1 | D9: To be supplied | E9: confirmed
A10: 7 | B10: Supply and installation of UPS for PLC and SCADA System; with a power capacity for 2 huors | C10: 1 | D10: To be supplied | E10: confirmed
A11: 8 | B11: Equipotential bonding of equipment and structures by use of a specific network interconnected to the plant’s general protective bonding circuit. | C11: 1 | D11: To be supplied | E11: confirmed
A12: 9 | B12: Delivery and installation of pneumatic field installation | C12: 1 | D12: To be supplied | E12: confirmed
A13: 10 | B13: Other electrical materials necessary for completion of the electrical installation, such as: conduits, cable trays, junction boxes, support materials, general hardware, etc. | C13: 1 | D13: To be supplied | E13: confirmed

Sheet Documentation
A1: Documentation | F1: Front Page
A2: No. | B2: Description | C2: Unit / Criteria | D2: AB InBev | E2: Contractor | F2: Notes
A3: Amount of Copies
A4: 1 | B4: Electronic Progress Report | C4: no. | D4: 1 weekly and 1 monthly | E4: confirmed
A5: =1+A4 -> 2 | B5: Minimum hydraulic retention Time | C5: no. | D5: 1, when changes | E5: to be clarified
A6: 3 | B6: Electronic Quality Assurance System | C6: no. | D6: 1 | E6: confirmed
A7: 4 | B7: Electronic Design Documentation for approval by the Engineer | C7: no. | D7: 1 | E7: confirmed
A8: 5 | B8: Paper copies of Design Documentation for approval by the Engineer, in suitable binding | C8: no. | D8: 2 | E8: confirmed
A9: 6 | B9: Electronic Operation and Maintenance Manuals | C9: no. | D9: 1 | E9: confirmed | F9: To be delivered to the engineer prior to testing of the plant.
A10: 7 | B10: Paper copies of Operation and Maintenance Manuals, in suitable binding | C10: no. | D10: 4 | E10: confirmed | F10: To be delivered to the engineer prior to testing of the plant.
A11: 8 | B11: Electronic As-built Documentation | C11: no. | D11: 1 | E11: confirmed
A12: 9 | B12: Paper copies of As-built Documentation, in suitable binding | C12: no. | D12: 2 | E12: confirmed
A13: Response Times
A14: =A12+1 -> 10 | B14: Response time for Approval by AB InBev and Engineer | C14: - | D14: 10 working days | E14: confirmed
A15: Language
A16: =A14+1 -> 11 | B16: Language of documentation | C16: - | D16: English | E16: confirmed
A17: =A16+1 -> 12 | B17: Language of documentation which might be subject to local authorities | C17: - | D17: Spanish and English | E17: not confirmed, only English
A18: Format of documentation
A19: =A17+1 -> 13 | B19: Electronic text documents | C19: format | D19: Word 2010, Letter or ISO-A formatted Also in pdf format | E19: confirmed
A20: =A19+1 -> 14 | B20: Electronic lists and data sheets | C20: format | D20: Excel 2010 Also in pdf format | E20: confirmed
A21: =A20+1 -> 15 | B21: Drawings | C21: format | D21: AutoCAD 2016 (dwg format) 2D or 3D Also in pdf format | E21: confirmed | G21: In dwg format files
A22: =A21+1 -> 16 | B22: Time Schedules | C22: format | D22: Microsoft Project 2010 Also in pdf format | E22: confirmed
A23: Design Documentation Deliverables | B23: Design Documentation Deliverables
A24: =A22+1 -> 17 | B24: Control system hardware documentation | C24: document | D24: To be supplied | E24: confirmed | G24: by Control System Supplier / Brewhouse Contractor, as applicable in individual project, and as stated in column D
A25: =A24+1 -> 18 | B25: Standard Software documentation | C25: document | D25: To be supplied | E25: confirmed | G25: by Control System Supplier / Brewhouse Contractor, as applicable in individual project, and as stated in column D
A26: =A25+1 -> 19 | B26: Application Software documentation | C26: document | D26: To be supplied | E26: confirmed | G26: by Control System Supplier / Brewhouse Contractor, as applicable in individual project, and as stated in column D
A27: =A26+1 -> 20 | B27: System operating instruction | C27: document | D27: To be supplied | E27: confirmed | G27: by Control System Supplier / Brewhouse Contractor, as applicable in individual project, and as stated in column D
A28: =A27+1 -> 21 | B28: Functional Specification documentation, General Part and FDS | C28: document | D28: To be supplied | E28: confirmed | G28: by Control System Supplier / Brewhouse Contractor, as applicable in individual project, and as stated in column D
A29: Process Specific SCADA Specifications | B29: Process Specific SCADA Specifications
A30: =A28+1 -> 22 | B30: Production scheduling for Raw Material Only | D30: To be supplied | E30: not applicable
A31: =A30+1 -> 23 | B31: Recipe management. This does not typically apply to Utility Suppliers. | D31: To be supplied | E31: not applicable
A32: 24 | B32: Process Batch reports | D32: To be supplied | E32: not applicable | G32: - Reports for each batch operation (Unit Operation) - Reports fro Process Area - Reports for Cross - - Process Areas
A33: 25 | B33: Utility Reports: Production reports and key performance figures | D33: To be supplied | E33: not confirmed
A34: 26 | B34: Other reports | D34: To be supplied | E34: not confirmed
A35: 27 | B35: Historical Trending | D35: To be supplied | E35: confirmed
A36: 28 | B36: Process Areas: Inventory survey for raw materials (silo balance) and auxilliary | D36: To be supplied | E36: not applicable
A37: 29 | B37: Utility Areas: Inventory survey for "raw" materials and consumables | D37: To be supplied | E37: not confirmed

Sheet Training
A1: Training | F1: Front Page
A2: No. | B2: Description | C2: Units | D2: AB InBev | E2: Contractor | F2: Notes
A3: 1 | B3: Trainers language of expertise | C3: - | D3: English and Spanish | E3: not confirmed, only English
A4: 2 | B4: Language of training material | C4: - | D4: English and Spanish | E4: not confirmed, only English
A5: Training at Contractor’s Premises (Off-site Training)
A6: 3 | B6: Amount of hard copies of training material to be delivered by the Contractor | C6: no. | D6: Operation: 12 off Maintenance: 6 off | E6: not applicable
A7: 4 | B7: Number of people to participate | C7: no. | D7: Operation: 4 off Maintenance: 4 off | E7: not applicable
A8: 5 | B8: Training duration | C8: hours | D8: To be specified | E8: not applicable
A9: Training at AB InBev’s Premises (On-site Training) Training for All
A10: 6 | B10: Amount of hard copies of training material to be delivered by the Contractor | C10: no. | D10: Operation: 12 off Maintenance: 6 off | E10: confirmed
A11: 7 | B11: Number of people to participate | C11: no. | D11: Operation: 6 off Maintenance: 4 off | E11: confirmed
A12: 8 | B12: Training duration | C12: hours | D12: To be specified | E12: 40 | F12: classroom + on-the-job training during start-up of the plant
A13: =A12+1 -> 9 | B13: Travel and per diem cost for the AB InBev's staff | C13: responsible | D13: AB InBev | E13: confirmed
A14: =A13+1 -> 10 | B14: Cost for training facilities on-site | C14: responsible | D14: AB InBev | E14: confirmed
A15: 11 | B15: Cost for the instructors and other training resources | C15: responsible | D15: Contractor | E15: confirmed
A16: 12 | B16: Travel and accomodation costs for the Contractor's Staff on-site or off-site | C16: responsible | D16: Contractor | E16: confirmed
A17: 13 | B17: Cost for all training material, including translation costs, if any | C17: responsible | D17: Contractor | E17: confirmed
A18: 14 | B18: Costs for interpreters during training | C18: responsible | D18: Contractor | E18: confirmed
A19: 15 | B19: Cost for training facilities off-site | C19: responsible | D19: Contractor | E19: confirmed

Sheet Required Makes - Mechanical
A1: Required Makes - Mechanical | H1: Front Page
A2: Brewhouse
A3: No. | B3: Valve Type | C3: Application | D3: Required Makes | E3: Comments | F3: Contractor Makes | G3: Contractor Types | H3: Notes
A4: 1 | B4: Process valves, seat | C4: < DN 150 | D4: Alfa-Laval SPX GEA Pentair | F4: not applicable | G4: not applicable
A5: =+A4+1 -> 2 | B5: Minimum hydraulic retention Time | C5: < DN 150 | D5: Alfa-Laval SPX GEA Pentair | F5: not applicable | G5: not applicable
A6: =+A5+1 -> 3 | B6: Process valves | C6: >DN 150 | D6: Keystone Amri | E6: Casing: Grey cast iron Disc and counter flange: Stainless steel | F6: not applicable | G6: not applicable
A7: =+A6+1 -> 4 | B7: Modulating control valves | D7: Samson | F7: not applicable | G7: not applicable
A8: 5 | B8: Double Seated Leakproof Valves | D8: Alfa-Laval SPX GEA Pentair | F8: not applicable | G8: not applicable
A9: 6 | B9: Sample Valve, Microbiological | D9: Keofitt W9, type h | F9: not applicable | G9: not applicable
A10: 7 | B10: Sample Valve, Chemical | D10: Keofitt W9, type h | F10: not applicable | G10: not applicable
A11: 8 | B11: Other Process valves | D11: To be specified | F11: not applicable | G11: not applicable
A13: Beer Processing and Filtration
A14: No. | B14: Process Valve Type | C14: Application | D14: Required Makes | E14: Comments | F14: Contractor Makes | G14: Contractor Types | H14: Notes
A15: =+A11+1 -> 9 | B15: Process valves, seat | D15: Alfa-Laval SPX GEA Pentair | F15: not applicable | G15: not applicable
A16: =+A15+1 -> 10 | B16: Process valves, butterfly | D16: Alfa-Laval SPX GEA Pentair | E16: Sandwich type | F16: not applicable | G16: not applicable
A17: =+A16+1 -> 11 | B17: Double Seated Leak-proof valves Individual Seat Lift | C17: Wort Yeast Unfiltered Beer | D17: Alfa-Laval SPX GEA Pentair | F17: not applicable | G17: not applicable
A18: =+A17+1 -> 12 | B18: Double Seated Leak-proof valves Flushing Only | C18: Bright Beer | D18: Bray Alfa-Laval SPX GEA Pentair | F18: not applicable | G18: not applicable
A19: 13 | B19: Double Seated Leak-proof valves No Flushing | C19: DAW:DAW CIP | D19: SPX GEA-Tuchenhagen Pentair | F19: not applicable | G19: not applicable
A20: 14 | B20: Modulating control valves | D20: Samson Fisher | E20: Stainless steel | F20: not applicable | G20: not applicable
A21: 15 | B21: Pressure safety valves | D21: Pentair | E21: Stainless steel Hygienic | F21: not applicable | G21: not applicable
A22: 16 | B22: Vacuum safety valves | F22: not applicable | G22: not applicable
A23: 17 | B23: Non-return valves | D23: SPX Rosista Keystone Pentair | F23: not applicable | G23: not applicable
A24: 18 | B24: Sample Valve, Microbiological | D24: Keofitt W9, type h | F24: not applicable | G24: not applicable
A25: 19 | B25: Sample Valve, Chemical | C25: Yeast Propagation Vessels | D25: Keofitt | F25: not applicable | G25: not applicable
A26: 20 | B26: Sample Valve, Chemical | D26: Keofitt W9, type h | F26: not applicable | G26: not applicable
A27: 21 | B27: Other Process valves | D27: To be specified | F27: not applicable | G27: not applicable
A29: No. | B29: Process Pump Type | C29: Application | D29: Required Makes | E29: Comments | F29: Contractor Makes | G29: Contractor Types | H29: Notes
A30: =+A27+1 -> 22 | B30: Centrifugal | D30: SPX Fristam GEA | E30: Sanitary | F30: not applicable | G30: not applicable
A31: =+A30+1 -> 23 | B31: Rotary Lobe Pump | C31: Yeast | D31: Alfa Laval GEA Hilge | E31: Sanitary | F31: not applicable | G31: not applicable
A32: =+A31+1 -> 24 | B32: Rotary Lobe Pump | D32: Alfa Laval GEA Hilge | F32: not applicable | G32: not applicable
A33: =+A32+1 -> 25 | B33: Helical rotor | D33: Mono | E33: Sanitary | F33: not applicable | G33: not applicable
A34: =+A31+1 -> 24 | B34: Diaphragm | D34: Wilden | E34: Sanitary | F34: not applicable | G34: not applicable
A35: =+A34+1 -> 25 | B35: Peristaltic | D35: Bredel | E35: Sanitary | F35: not applicable | G35: not applicable
A36: =+A33+1 -> 26 | B36: Rubber impeller | D36: Jabsco | E36: Sanitary | F36: not applicable | G36: not applicable
A37: =+A36+1 -> 27 | B37: Mechanical seals | D37: Sealing Tech. | F37: not applicable | G37: not applicable
A38: =+A35+1 -> 26 | B38: Other pumps | D38: To be specified | F38: not applicable | G38: not applicable
A40: No. | B40: Process Instrument Type | C40: Application | D40: Required Makes | E40: Comments | F40: Contractor Makes | G40: Contractor Types | H40: Notes
A41: =+A38+1 -> 27 | B41: Pressure gauge | D41: Pressure gauge Ashcroft Budenberg | E41: S/S sanitary diaphragm | F41: not applicable | G41: not applicable
A42: =+A41+1 -> 28 | B42: Vacuum gauge | D42: Pressure gauge Ashcroft Budenberg | E42: S/S sanitary diaphragm | F42: not applicable | G42: not applicable
A44: No. | B44: CIP Devices | C44: Application | D44: Required Makes | E44: Comments | F44: Contractor Makes | G44: Contractor Types | H44: Notes
A45: =+A42+1 -> 29 | B45: Rotary Device/Jet Cleaning | D45: Alfa Laval | F45: not applicable | G45: not applicable
A46: =+A45+1 -> 30 | B46: Spray Ball | D46: GEA | F46: not applicable | G46: not applicable
A48: No. | B48: Heat Exchanger | C48: Application | D48: Required Makes | E48: Comments | F48: Contractor Makes | G48: Contractor Types | H48: Notes
A49: =+A46+1 -> 31 | B49: Plate heat exchanger | D49: Alfa Laval | F49: not applicable | G49: not applicable
A50: =+A49+1 -> 32 | B50: Shell and tube exchanger | D50: Alfa Laval | F50: not applicable | G50: not applicable
A52: No. | B52: Agitator | C52: Application | D52: Required Makes | E52: Comments | F52: Contractor Makes | G52: Contractor Types | H52: Notes
A53: =+A50+1 -> 33 | B53: Agitator | D53: Alfa Laval | F53: not applicable | G53: not applicable
A55: No. | B55: Sterile Filter, Air | C55: Application | D55: Required Makes | E55: Comments | F55: Contractor Makes | G55: Contractor Types | H55: Notes
A56: =+A53+1 -> 34 | B56: Sterile Filter, Air | D56: Donaldson | F56: not applicable | G56: not applicable
A58: No. | B58: UV Unit | C58: Application | D58: Required Makes | E58: Comments | F58: Contractor Makes | G58: Contractor Types | H58: Notes
A59: =+A56+1 -> 35 | B59: UV Unit | D59: Hanovia | F59: not applicable | G59: not applicable
A61: Utility Equipment
A62: No. | B62: Water | C62: Application | D62: Required Makes | E62: Comments | F62: Contractor Makes | G62: Contractor Types | H62: Notes
A63: =+A59+1 -> 36 | B63: Ball valves | C63: <DN100 | D63: Keystone | G63: For ≤ DN50 Type: full bore, 2 or 3-piece depending on application, lockable. Connection: inside threaded connection (BSP as standard, NPT on request). Material: stainless steel AISI 316 body and ball, PTFE stem and ball seal
A64: =+A63+1 -> 37 | B64: Butterfly valves | C64: ≥DN100 | D64: SPX GEA Keystone | E64: Valves ≥150 to be with manual gear | G64: For ≥ DN65 DN65 -DN250: Handle with 10 snap-in positions DN300-DN500: Handwheel (gear box) with position indicator Type: wafer or lug type depending on application. Connection: standard EN1092-1 PN10 (ANSI B16.5 #150 on request) Material: cast iron body (GG25/GGG40), stainless steel AISI 304(316) disk and stem, EPDM seat and seals
A65: =+A64+1 -> 38 | B65: Gate valves | D65: KSB | G65: Only for sludge lines ≥ DN65 Type: wafer/lug type, unidirection or bidirectional depending on application, handwheel (gear box) with position indicator Connection: standard EN1092-1 PN10 (ANSI B16.5 #150 on request) Material: cast iron body (GG25/GGG40), stainless steel AISI 304(316) knife gate and stem (non rising), Metal/Metal sealing
A66: =+A65+1 -> 39 | B66: Control valves | D66: Fisher Samson | G66: Modulating: Type: butterfly valve, wafer type, with pneumatic actuator, positioner with position feedback Connection: for in-between flanges, standard EN1092-1 PN10 (ANSI B16.5 #150 on request) Material: cast iron body (GG25/GGG40), stainless steel AISI 304(316) disk and stem, EPDM seat and seals (depending on medium) ON/OFF: Type 1: butterfly valve, wafer type, with pneumatic actuator Connection: for in-between flanges, standard EN1092-1 PN10 (ANSI B16.5 #150 on request) Material: cast iron body (GG25/GGG40), stainless steel AISI 304(316) disk and stem, EPDM seat and seals (depending on medium) Type 2: 24 VDC solenoid valve, (only for clean water) Connection: inside threaded. Material: stainless steel
A67: =+A66+1 -> 40 | B67: Flow balancing valves | D67: TA Hydronics Armstrong | G67: N/A
A69: No. | B69: Steam and Condensate | C69: Application | D69: Required Makes | E69: Comments | F69: Contractor Makes | G69: Contractor Types | H69: Notes
A70: =+A67+1 -> 41 | B70: Manual valves | D70: Spirax Sarco Armstrong | E70: Globe, flanged | F70: not applicable | G70: not applicable
A71: =+A70+1 -> 42 | B71: Control valves | D71: Spirax Sarco Armstrong | F71: not applicable | G71: not applicable
A72: =+A71+1 -> 43 | B72: Pressure reduction valves | D72: Spirax Sarco Armstrong | F72: not applicable | G72: not applicable
A73: =+A72+1 -> 44 | B73: Sight glass | D73: Spirax Sarco Armstrong | F73: not applicable | G73: not applicable
A74: =+A73+1 -> 45 | B74: Steam traps | D74: Spirax Sarco Armstrong | F74: not applicable | G74: not applicable
A76: No. | B76: Ammonia | C76: Application | D76: Required Makes | E76: Comments | F76: Contractor Makes | G76: Contractor Types | H76: Notes
A77: =+A74+1 -> 46 | B77: Valves | D77: Herl Danfoss | F77: not applicable | G77: not applicable
A78: =+A77+1 -> 47 | B78: Back pressure valves | D78: Herl Danfoss | F78: not applicable | G78: not applicable
A79: =+A78+1 -> 48 | B79: Solenoid valves | D79: Herl Danfoss | F79: not applicable | G79: not applicable
A80: =+A79+1 -> 49 | B80: Liquid injection system | D80: Danfoss | F80: not applicable | G80: not applicable
A81: =+A80+1 -> 50 | B81: Pressure indicators | D81: Herl Danfoss | F81: not applicable | G81: not applicable
A83: No. | B83: Ethanol / Glycol | D83: Required Makes | E83: Comments | F83: Contractor Makes | G83: Contractor Types | H83: Notes
A84: =+A81+1 -> 51 | B84: Butterfly valves | D84: Keystone Bray Challenger | E84: Cast Steel Housing, if installed in carbon steel piping | F84: not applicable | G84: not applicable
A85: =+A84+1 -> 52 | B85: Control valves | D85: Fisher Samson | F85: not applicable | G85: not applicable
A86: =+A85+1 -> 53 | B86: Flow balancing valves | D86: TA Hydronics FDI Hydroflow Frese Alpha Oventrop KSB Boa-Control IMS | F86: not applicable | G86: not applicable
A88: No. | B88: Compressed Air | C88: Application | D88: Required Makes | E88: Comments | F88: Contractor Makes | G88: Contractor Types | H88: Notes
A89: =+A86+1 -> 54 | B89: Ball valves | D89: Keystone | G89: For distribution system of instrument (or compressed) air: Type: full bore 2-piece ball valve, lockable. Connection: inside threaded connection (BSP as standard, NPT on request). Material: stainless steel AISI 316 body and ball, PTFE stem and ball seal
A90: =+A89+1 -> 55 | B90: Pressure reduction valves | D90: Atlas Copco | G90: Pressure regulators (for instr. air): Filter / pressure regulator for instrument air (for 10 barg) Components: pressure regulator, indicator, filter (40-50 microns) Connection: depending on location - Female thread (BSP as standard, NPT on request); - Hose connector for pneumatic hoses
A91: =+A90+1 -> 56 | B91: Air service units and cylinders (pneumatics) | D91: SMC Festo | E91: As per ISO Standard | G91: For actuators in control valves: Type: pneumatic, single or double acting depending on the application, 90º turn.
A92: =+A91+1 -> 57 | B92: Air hoses, General | D92: SMC, TH Festo, PLN | E92: As per ISO Standard | G92: Tubing for instrument air: Polyamide tube, black, UV resistant, OD: 8 mm
A93: =+A92+1 -> 58 | B93: Air hoses, CIP | D93: SMC, TLM Festo, PFAN | E93: As per ISO Standard | G93: N/A
A95: No. | B95: CO2 (Gas) | C95: Application | D95: Required Makes | E95: Comments | F95: Contractor Makes | G95: Contractor Types | H95: Notes
A96: =+A93+1 -> 59 | B96: Ball valves | D96: Keystone Pentair | E96: Stainless steel up to and including 1½” BSP | F96: not applicable | G96: not applicable
A97: =+A96+1 -> 60 | B97: CO2 Regulation valve | D97: ? | F97: not applicable | G97: not applicable
A98: =+A97+1 -> 61 | B98: Butterfly valves | D98: SPX GEA Keystone Pentair | E98: Sandwich type F990, F991 or F991 | F98: not applicable | G98: not applicable
A100: No. | B100: Hot Liquor and Hot Caustic | C100: Application | D100: Required Makes | E100: Comments | F100: Contractor Makes | G100: Contractor Types | H100: Notes
A101: =+A98+1 -> 62 | B101: Butterfly valves | D101: SPX GEA Pentair Keystone | E101: K-Lok stainless steel | F101: not applicable | G101: not applicable
A103: No. | B103: Hydraulics | C103: Application | D103: Required Makes | E103: Comments | F103: Contractor Makes | G103: Contractor Types | H103: Notes
A104: =+A101+1 -> 63 | B104: Cylinders and control valves | D104: Mannesmann Rexroth | E104: As per ISO Standard | F104: not applicable | G104: not applicable
A106: No. | B106: Pumps | C106: Application | D106: Required Makes | E106: Comments | F106: Contractor Makes | G106: Contractor Types | H106: Notes
A107: =+A104+1 -> 64 | B107: Centrifugal | C107: Water | D107: Southern Cross Grundfos | E107: CI, ZFB or Stainless Steel, Sovereign, Starline | F107: KSB | G107: centrifugal
A108: =+A107+1 -> 65 | B108: Centrifugal | C108: Glycol/Ethanol | D108: Southern Cross Grundfos | E108: CI, ZFB or Stainless Steel, Sovereign, Starline | F108: not applicable | G108: not applicable
A109: =+A108+1 -> 66 | B109: Canned motor pumps | C109: Ammonia | D109: Hermetic | F109: not applicable | G109: not applicable
A110: =+A109+1 -> 67 | B110: Diaphragm | C110: Chemical dosing | D110: Wilden | F110: Jesco | G110: diaphragm
A111: 68 | B111: Multistage pump | C111: Condensate | D111: Spirax Sarco | F111: not applicable | G111: not applicable
A112: 69 | B112: Mechanical seals | D112: Sealing Tech.

Sheet Required Makes - Electrical
A1: Required Makes - Electrical | I1: Front Page
A2: Electrical Components
A3: No. | B3: Component | C3: Application | D3: Required Makes | E3: Required Type | F3: Output | G3: Contractor Makes | H3: Contractor Types | I3: Notes
A4: 1 | B4: LV Switchboards | D4: Siemens Schneider | G4: Rittal
A5: 2 | B5: Minimum hydraulic retention Time | D5: Siemens Schneider | G5: to be clarified
A6: 3 | B6: Fuses | D6: Siemens Schneider
A7: 4 | B7: MV Cables | E7: 3-core XLPE insulated PVC bedded; steel wire armoured, PVC sheathed cables and conform to SANS 1339 Type A, rated voltage 6.35/11 kV | G7: not applicable | H7: not applicable
A8: 5 | B8: LV Main cables | E8: 4 core PVC Insulated PV bedded SWA PVC sheathed 600/1000 V cables manufactured to SANS 1507-3 (similar tp IEC 60502-1) | H8: NYY-J/ OZ Plain copper conductor, to DINVDEcl.1 or cl.2 solid or stranded type, BScl.1 or cl.2, IEC60228 and HD383 PVC core insulation, DIV4 to HD603.1 Cores stranded concentrically Colour coded to DINVDE0293-308, 0276 part603 or HD186 Core colour for 3+½ conductor J-type: gnye (½), bn, bk, gy O-type: bu (½), bn, bk, gy PVC outer jacket, DMV5 to HD603.1 Sheath colour black
A9: 6 | B9: Digital instruments | E9: YY min 0.75 mm sq | H9: control cable; flexible; numbered conductors; with GR/YE conductor
A10: 7 | B10: Analogue Instruments | E10: CY min 0.75 mm sq | H10: screened control cable; flexible; numbered conductors; without GNYE conductor; UV resistant
A11: 8 | B11: AS-i | D11: Siemens IFM Phoenix | E11: Flat Yellow cable suitable for IP67K
A12: 9 | B12: Profibus PA | D12: Siemens | E12: Profibus PA Type A to IEC61158-2 | H12: • PROFIBUS DP (in accordance with DIN 19245 and EN 50170, e.g. for SIEMENS SIMATIC ® NET, also suitable for FIP - Factory Instrumentation Protocol).
A13: 10 | B13: Ethernet | E13: Cat 6 up to 80 m. Fibre Optic over 80 m | H13: ETHERLINE® Y Cat.5e BK 2x2AWG22/7
A14: 11 | B14: PLC | D14: Siemens Rockwell | E14: SIMATIC S7-400/1500 [Note: Or] ControlLogix | H14: ETHERLINE® FD P FC Cat.5
A15: 12 | B15: Remote I/O | D15: Siemens Rockwell | E15: ET200 ControlLogix | H15: ETHERLINE® FD P FC Cat.5
A17: Analogue Instruments
A18: No. | B18: Instrument | C18: Application | D18: Required Makes | E18: Type | F18: Output | G18: Contractor Makes | H18: Contractor Types | I18: Notes
A19: 11 | B19: Temperature transmitter | D19: E & H | E19: RTD, TMT182 transmitter | F19: 4-20mA, HART [Note: Or] Profibus PA | G19: E & H
A20: 12 | B20: Pressure transmitter | D20: E & H Vega | E20: PMP / PMC 5X | F20: 4-20mA, HART [Note: Or] Profibus PA | G20: E & H
A21: 13 | B21: Level transmitter Differential pressure | C21: Level in sanitary tanks | D21: E & H Vega | E21: FMB7X | F21: 4-20mA, HART [Note: Or] Profibus PA | G21: E & H
A22: 14 | B22: Level transmitter Microwave / Ultrasonic | D22: E & H Vega | E22: Solids : FMP57, Liquids FMR52 Vegapulse 63 | F22: 4-20mA, HART [Note: Or] Profibus PA | G22: E & H
A23: 15 | B23: Flowmeter, Electro-magnetic | D23: E & H Siemens | E23: Promag 100/300 Series SITRANS MAG 1100 / 1100F / 3100 / 6000 | F23: 4-20mA, HART or Profibus PA | G23: E & H
A24: 16 | B24: Flow-transmitter, Mass | D24: E & H Siemens | E24: Promass 100/200/500 series SITRANS FC430 / MASS 2100 / MASS 6000 | F24: 4-20mA, HART [Note: Or] Profinet [Note: Or] Ethernet IP | G24: E & H
A25: 17 | B25: Alcohol analyser | D25: Anton Paar | E25: mPDS5 evaluation unit Inline pump L-Dens 4x7 sensor | F25: 4-20mA, HART [Note: Or] Profinet [Note: Or] Ethernet IP | G25: not applicable | H25: not applicable
A26: 18 | B26: Conductivity transmitter | D26: E & H | E26: CLD134 | F26: Profinet [Note: Or] Ethernet IP | G26: not applicable | H26: not applicable
A27: 19 | B27: Frequency converters | D27: Danfoss Rockwell Siemens | E27: FC302 PowerFlex 52x 75x Sinamics G120 / G120C (The equipment must be of the same characteristics) | F27: 4-20mA, HART [Note: Or] Profinet [Note: Or] Ethernet IP | G27: Danfoss | H27: FC202/FC302
A28: 20 | B28: pH | D28: Mettler Toledo E & H | F28: 4-20mA, HART [Note: Or] Profinet [Note: Or] Ethernet IP | G28: E & H
A29: No. | B29: Instrument | C29: Application | D29: Required Makes | E29: Type | F29: Output | G29: Contractor Makes | H29: Contractor Types | I29: Notes
A30: 21 | B30: O2 | D30: Haffmans Anton Paar (optic) | F30: 4-20mA, HART [Note: Or] Profinet [Note: Or] Ethernet IP | G30: not applicable | H30: not applicable
A31: 22 | B31: CO2 | D31: Haffmans Anton Paar (optic) | F31: 4-20mA, HART [Note: Or] Profinet [Note: Or] Ethernet IP | G31: not applicable | H31: not applicable
A32: 23 | B32: Colour plus turbidity meter | D32: Sigrist Haffmans Optec (colour + turbidity meter) | F32: 4-20mA, HART [Note: Or] Profinet [Note: Or] Ethernet IP | G32: not applicable | H32: not applicable
A33: 24 | B33: Plato degree | D33: Anton Paar Centec | F33: 4-20mA, HART [Note: Or] Profinet [Note: Or] Ethernet IP | G33: not applicable | H33: not applicable
A35: Digital Instruments
A36: No. | B36: Instrument | C36: Application | D36: Required Makes | F36: Output | G36: Contractor Makes | H36: Contractor Types | I36: Notes
A37: 25 | B37: Temperature switch | D37: E & H | F37: 24VDC [Note: Or] AS-i [Note: Or] IO Link | G37: E & H
A38: 26 | B38: Pressure switch | D38: E & H | F38: 24VDC [Note: Or] AS-i [Note: Or] IO Link | G38: E & H
A39: 27 | B39: Level switch (vibration) | D39: E & H Vega | F39: 24VDC [Note: Or] AS-i [Note: Or] IO Link | G39: E & H
A40: 28 | B40: Level electrode | D40: E & H Vega | F40: 24VDC [Note: Or] AS-i [Note: Or] IO Link | G40: E & H
A41: 29 | B41: Level amplifier (conductive) | D41: E & H Vega | F41: 24VDC [Note: Or] AS-i [Note: Or] IO Link | G41: E & H
A42: 30 | B42: Level switch capacity) | D42: E & H Vega | F42: 24VDC [Note: Or] AS-i [Note: Or] IO Link | G42: E & H
A43: 31 | B43: Flow switch | D43: E & H IFM | F43: 24VDC [Note: Or] AS-i [Note: Or] IO Link | G43: E & H
A44: 32 | B44: Choke Detector Sensor | F44: 24VDC [Note: Or] AS-i [Note: Or] IO Link | G44: not applicable | H44: not applicable
A45: 33 | B45: Speed Sensor | F45: 24VDC [Note: Or] AS-i [Note: Or] IO Link | G45: not applicable | H45: not applicable
A46: 34 | B46: Proximity switch | D46: Any | F46: 24VDC [Note: Or] AS-i [Note: Or] IO Link

Sheet Required Makes - Paint
A1: Required Makes - Paint | E1: Front Page
A2: No. | B2: Component | C2: Required Makes | D2: Contractor | E2: Notes
A3: 1 | B3: Bituminous, single component solution / coal-tar epoxy-polyamide | C3: Betumox Intertuf-Ar Sher-Tar 200 BR Sher-Tar 2000
A4: =A3+1 -> 2 | B4: Modified, dual-component, aluminum epoxy mastic | C4: Macropoxy HS Alumínio BR
A5: =A4+1 -> 3 | B5: Minimum hydraulic retention Time | C5: Sher-Tile HS Primer BR Intergard poliamida
A6: 4 | B6: Acrylic-silicone primer resistant to temperature | C6: Sumaterm 240 Primer
A7: 5 | B7: Paints resistant to high temperatures, based on modified, single component Silicone | C7: Sumatherm 400
A8: 6 | B8: Dual-component, epoxy-isocyanide primer | C8: Sumadur SP 530 Interplate 1350
A9: 7 | B9: Modified, dual-component epoxy | C9: Macropoxy 100 Sumastic 228
A10: 8 | B10: Aliphatic acrylic polyurethane enamel | C10: Sumatane
A11: 9 | B11: Dual-component, epoxy-isocyanide primer | C11: Sumadur SP 350 Interplate 1350
A12: 10 | B12: Modified, dual-component aluminum epoxy mastic | C12: Macropoxy HS Aluminum
A13: 11 | B13: Micaceous zinc | C13: Sumadur
A14: 12 | B14: Primer, shore environment (high aggressiveness) | C14: Sher-Tile HS Primer BR Dura-Plate 235 Multi-Purpose Epoxy
A15: 13 | B15: Intermediate, shore environment (high aggressiveness) | C15: Macropoxy 646 Fast Cure Macropoxy 100 Dura-Plate 235 Multi-Purpose Epoxy
A16: 14 | B16: Finish, shore environment (high aggressiveness) | C16: Sumatane HS BR Sumatane 355 HB Sumatane HS gloss

Sheet Revision History
A1: Revision History | E1: Front Page
A2: Revision | B2: Date | C2: Responsible | D2: Approval | E2: Comments
A3: 00 | B3: 22 Dec 2017 | C3: Poul Erik Jensen, NIRAS | D3: Pedro Hacker | E3: Initial release
A4: 1.0 | B4: 2018-12-12 | C4: Miroslav Halachev | D4: Juan Rodriguez | E4: New version
